{"text_format":"2","workbook":"xlsx","n_sheets":3,"sheets":["År","Fylket","Prosjekttype"],"not_rendered":{"charts":0,"images":0,"macros":0,"external_links":0,"defined_names":0,"comments":0,"pivot_tables":0},"unopened":[],"bounds":{"document_bytes":16777216,"sheet_cells":100000,"run_cost":"one","rows_first":2000,"rows_last":500,"rows_between":2000,"halvings":0,"cell_chars":16384,"cell_head_chars":4096},"cells_cut":0,"cells_raw":0,"read":"whole","date_system":"1900"}

{"sheet":"År","index":0,"n_rows":105,"n_cols":6,"rows_kept":105,"cut":false,"hidden":false,"merged":[]}
["Projektnavn","Fylke","Prosjektsøker","Prosjekttype","År","Prosjekt #"]
[{"$f":"HYPERLINK(\"http://mabit.no/prosjekt104\",\"Direct analysis of bioactive marine peptides in blood and tissue\")","v":"Direct analysis of bioactive marine peptides in blood and tissue"},"Troms","Norut Tromsø AS","Marin biprodukter",2015.0,104.0]
[{"$f":"HYPERLINK(\"http://mabit.no/prosjekt103\",\"Feasibility of using enzymes for conversion of chitin hydrolysates to sialic acid with commercial potential\")","v":"Feasibility of using enzymes for conversion of chitin hydrolysates to sialic acid with commercial potential"},"Troms","UiT- Norges arktiske universitet","Marin bioprospektering",2015.0,103.0]
[{"$f":"HYPERLINK(\"http://mabit.no/prosjekt102\",\"Frysetørkede laksebiter\")","v":"Frysetørkede laksebiter"},"Troms","Drytech AS","Marin biprodukter",2015.0,102.0]
[{"$f":"HYPERLINK(\"http://mabit.no/prosjekt101\",\"Jernabsorbsjon fra nytt hemoglobinpulver\")","v":"Jernabsorbsjon fra nytt hemoglobinpulver"},"Troms","Nofima","Marin biprodukter",2015.0,101.0]
[{"$f":"HYPERLINK(\"http://mabit.no/prosjekt100\",\"Prøvedyrking makroalger i IMTA kontekst for utvinning av proteiner og andre råstoffer til fiskefor\")","v":"Prøvedyrking makroalger i IMTA kontekst for utvinning av proteiner og andre råstoffer til fiskefor"},"Nordland","Folla Alger AS","Marin biprodukter",2015.0,100.0]
[{"$f":"HYPERLINK(\"http://mabit.no/prosjekt99\",\"Screening of Marine Extract Fractions by Bacillus Mode of Action specific BioSensors (BMABioS)\")","v":"Screening of Marine Extract Fractions by Bacillus Mode of Action specific BioSensors (BMABioS)"},"Troms","UiT- Norges arktiske universitet, NFH","Marin bioprospektering",2015.0,99.0]
[{"$f":"HYPERLINK(\"http://mabit.no/prosjekt98\",\"Sea urchins – a potential source for new carbohydrate active enzymes for bioengineering of seaweed polysaccharides\")","v":"Sea urchins – a potential source for new carbohydrate active enzymes for bioengineering of seaweed polysaccharides"},"Nordland","NIBIO Bodø","Marin bioprospektering",2015.0,98.0]
[{"$f":"HYPERLINK(\"http://mabit.no/prosjekt97\",\"Securing commerciability of anticancer activities identified for diketopiperazines derived from marine bioprospecting.\")","v":"Securing commerciability of anticancer activities identified for diketopiperazines derived from marine bioprospecting."},"Troms","UiT- Norges arktiske universitet","Marin bioprospektering",2015.0,97.0]
[{"$f":"HYPERLINK(\"http://mabit.no/prosjekt96\",\"Økt kvalitet i snøkrabbeindustrien gjennom hindring av misfarging - NoBlueCrab\")","v":"Økt kvalitet i snøkrabbeindustrien gjennom hindring av misfarging - NoBlueCrab"},"Troms","Nofima","Akvakultur og fiskehelse",2015.0,96.0]
[{"$f":"HYPERLINK(\"http://mabit.no/prosjekt95\",\"Biprodukter til menneskemat. Utvikling av prosess og produkter for ombordproduksjon.\")","v":"Biprodukter til menneskemat. Utvikling av prosess og produkter for ombordproduksjon."},"Nordland","AS Andenes Havfiskeselskap","Marin biprodukter",2014.0,95.0]
[{"$f":"HYPERLINK(\"http://mabit.no/prosjekt94\",\"Bruk av marine polypeptider for å behandle acne vulgaris\")","v":"Bruk av marine polypeptider for å behandle acne vulgaris"},"Troms","UiT Norges arktiske universitet, Norge fiskerihøgskole","Marin bioprospektering",2014.0,94.0]
[{"$f":"HYPERLINK(\"http://mabit.no/prosjekt93\",\"Bruk av olje fra umoden norsk vill silderogn som ny kilde til kosttilskudd for mennesker som alternativ til fiskeolje\")","v":"Bruk av olje fra umoden norsk vill silderogn som ny kilde til kosttilskudd for mennesker som alternativ til fiskeolje"},"Andre","CLARE AS","Marin biprodukter",2014.0,93.0]
[{"$f":"HYPERLINK(\"http://mabit.no/prosjekt92\",\"Development of heterobifunctional linkers for the synthesis of marine-based anticancer prodrugs\")","v":"Development of heterobifunctional linkers for the synthesis of marine-based anticancer prodrugs"},"Troms","Norut","Marin bioprospektering",2014.0,92.0]
[{"$f":"HYPERLINK(\"http://mabit.no/prosjekt91\",\"Development of seeding procedures for Sushi-Algae (Nori) suited for mariculture in Northern Norway\")","v":"Development of seeding procedures for Sushi-Algae (Nori) suited for mariculture in Northern Norway"},"Nordland","Bioforsk Nord Bodø","Akvakultur og fiskehelse",2014.0,91.0]
[{"$f":"HYPERLINK(\"http://mabit.no/prosjekt90\",\"Exploring the surface of crop plants as natural source for noxious weed repellents\")","v":"Exploring the surface of crop plants as natural source for noxious weed repellents"},"Troms","Universitetet i Tromsø, Institutt for arktisk og marin biologi","Marin bioprospektering",2014.0,90.0]
[{"$f":"HYPERLINK(\"http://mabit.no/prosjekt89\",\"Halozymes -Halofile enzymer med industriellt potensiale\")","v":"Halozymes -Halofile enzymer med industriellt potensiale"},"Troms","Barentzymes AS","Marin bioprospektering",2014.0,89.0]
[{"$f":"HYPERLINK(\"http://mabit.no/prosjekt88\",\"Hit-to-lead drug evaluation of marine natural product mimics with antimicrobial and anticancer activity\")","v":"Hit-to-lead drug evaluation of marine natural product mimics with antimicrobial and anticancer activity"},"Troms","Universitetet i Tromsø, Institutt for Farmasi","Marin bioprospektering",2014.0,88.0]
[{"$f":"HYPERLINK(\"http://mabit.no/prosjekt87\",\"Sammenligning av opptaks-hastigheter av EPA og DHA fra Calanus Oil og Ethylester (EE) fra fiskeolje hos menneske\")","v":"Sammenligning av opptaks-hastigheter av EPA og DHA fra Calanus Oil og Ethylester (EE) fra fiskeolje hos menneske"},"Troms","Calanus AS","Marin biprodukter",2014.0,87.0]
[{"$f":"HYPERLINK(\"http://mabit.no/prosjekt86\",\"The use of interferon in protection of Atlantic salmon against salmon pancreas disease virus\")","v":"The use of interferon in protection of Atlantic salmon against salmon pancreas disease virus"},"Troms","Universitetet i Tromsø, NFH","Akvakultur og fiskehelse",2014.0,86.0]
[{"$f":"HYPERLINK(\"http://mabit.no/prosjekt85\",\"Development of methods for short and long-term storage of sperm from sp. wolffish (CRYWOLF)\")","v":"Development of methods for short and long-term storage of sperm from sp. wolffish (CRYWOLF)"},"Troms","Akvaplan-niva AS","Akvakultur og fiskehelse",2013.0,85.0]
[{"$f":"HYPERLINK(\"http://mabit.no/prosjekt84\",\"Enzymer fra kongekrabbe til nedbryting av restråstoff fra laks og kylling\")","v":"Enzymer fra kongekrabbe til nedbryting av restråstoff fra laks og kylling"},"Troms","Nofima AS","Marin biprodukter",2013.0,84.0]
[{"$f":"HYPERLINK(\"http://mabit.no/prosjekt83\",\"Etablere smittemodeller for nord-norsk rognkjeks for fremtidig sykdomsbekjempelse og vaksineutvikling.\")","v":"Etablere smittemodeller for nord-norsk rognkjeks for fremtidig sykdomsbekjempelse og vaksineutvikling."},"Troms","Nofima AS","Akvakultur og fiskehelse",2013.0,83.0]
[{"$f":"HYPERLINK(\"http://mabit.no/prosjekt82\",\"Etablering av cellulære assays for screening av nye kinaseinhibitorer.\")","v":"Etablering av cellulære assays for screening av nye kinaseinhibitorer."},"Troms","Universitetet i Tromsø, Institutt for Farmasi","Marin bioprospektering",2013.0,82.0]
[{"$f":"HYPERLINK(\"http://mabit.no/prosjekt81\",\"Fremstille en høykvalitets olje fra torskelever der mest mulig av A-, D- og E vitaminene er bevart i produktet\")","v":"Fremstille en høykvalitets olje fra torskelever der mest mulig av A-, D- og E vitaminene er bevart i produktet"},"Nordland","Wahl Prosess Utvikling AS","Marin biprodukter",2013.0,81.0]
[{"$f":"HYPERLINK(\"http://mabit.no/prosjekt80\",\"Frigivelse av lukt- og smakstoffer fra kunstig og naturlig agn\")","v":"Frigivelse av lukt- og smakstoffer fra kunstig og naturlig agn"},"Troms","Polybait AS","Marin biprodukter",2013.0,80.0]
[{"$f":"HYPERLINK(\"http://mabit.no/prosjekt79\",\"HerrZyme - Enzymekarakterisering og teknologiutvikling for kommersialisering av enzym fra restråstoff av sild\")","v":"HerrZyme - Enzymekarakterisering og teknologiutvikling for kommersialisering av enzym fra restråstoff av sild"},"Troms","Nofima AS","Marin biprodukter",2013.0,79.0]
[{"$f":"HYPERLINK(\"http://mabit.no/prosjekt78\",\"Hjertehelse som risikofaktor for slaktedødelighet i Nord-Norge\")","v":"Hjertehelse som risikofaktor for slaktedødelighet i Nord-Norge"},"Troms","Lerøy Aurora AS","Akvakultur og fiskehelse",2013.0,78.0]
[{"$f":"HYPERLINK(\"http://mabit.no/prosjekt77\",\"Produktutvikling av OliVita olje vha ny teknologi for smaksmarkering og smakstilsetning\")","v":"Produktutvikling av OliVita olje vha ny teknologi for smaksmarkering og smakstilsetning"},"Troms","OliVita AS","Marin biprodukter",2013.0,77.0]
[{"$f":"HYPERLINK(\"http://mabit.no/prosjekt76\",\"Utvinning og testing av bio-aktive substanser fra restråstoff\")","v":"Utvinning og testing av bio-aktive substanser fra restråstoff"},"Troms","ScandiDerma AS","Marin bioprospektering",2013.0,76.0]
[{"$f":"HYPERLINK(\"http://mabit.no/prosjekt75\",\"Bruk av kongekrabbemel som næringskilde og attraktant i fôr til Arktisk røye i oppdrett\")","v":"Bruk av kongekrabbemel som næringskilde og attraktant i fôr til Arktisk røye i oppdrett"},"Finnmark","Kirkenes Charr AS","Akvakultur og fiskehelse",2012.0,75.0]
[{"$f":"HYPERLINK(\"http://mabit.no/prosjekt74\",\"Baculovirus expression of key drug discovery targets\")","v":"Baculovirus expression of key drug discovery targets"},"Troms","Universitet i Tromsø","Marin bioprospektering",2012.0,74.0]
[{"$f":"HYPERLINK(\"http://mabit.no/prosjekt73\",\"Bioactive Interfaces\")","v":"Bioactive Interfaces"},"Troms","Universitet i Tromsø","Marin bioprospektering",2012.0,73.0]
[{"$f":"HYPERLINK(\"http://mabit.no/prosjekt72\",\"Development of a new fish feed concept based on raw materials from aquaculture and fish industry – development of protocols for production\")","v":"Development of a new fish feed concept based on raw materials from aquaculture and fish industry – development of protocols for production"},"Nordland","Bioforsk Bodø","Akvakultur og fiskehelse",2012.0,72.0]
[{"$f":"HYPERLINK(\"http://mabit.no/prosjekt71\",\"Etablering av dyremodell for blodtrykksregulering ved UiT\")","v":"Etablering av dyremodell for blodtrykksregulering ved UiT"},"Troms","BFE, Universitetet i Tromsø","Marin biprodukter",2012.0,71.0]
[{"$f":"HYPERLINK(\"http://mabit.no/prosjekt70\",\"Forskning på proteinhydrolysater som attraktant kilder til Polybait agn\")","v":"Forskning på proteinhydrolysater som attraktant kilder til Polybait agn"},"Troms","Polybait AS","Marin biprodukter",2012.0,70.0]
[{"$f":"HYPERLINK(\"http://mabit.no/prosjekt69\",\"Isolation and characterization of Norwegian red algae suitable for commercial mariculture\")","v":"Isolation and characterization of Norwegian red algae suitable for commercial mariculture"},"Nordland","Bioforsk Nord Bodø","Akvakultur og fiskehelse",2012.0,69.0]
[{"$f":"HYPERLINK(\"http://mabit.no/prosjekt68\",\"Northern Competence Group: Aquaculture Clinical Nutrition\")","v":"Northern Competence Group: Aquaculture Clinical Nutrition"},"Troms","EWOS Innovation","Akvakultur og fiskehelse",2012.0,68.0]
[{"$f":"HYPERLINK(\"http://mabit.no/prosjekt67\",\"Oppsett av screening plattform for testing av dermatologiske indikasjoner\")","v":"Oppsett av screening plattform for testing av dermatologiske indikasjoner"},"Troms","Scandinavian Dermal Innovation","Marin bioprospektering",2012.0,67.0]
[{"$f":"HYPERLINK(\"http://mabit.no/prosjekt66\",\"Produksjon av nye protein kinase targets for screening og strukturstudier\")","v":"Produksjon av nye protein kinase targets for screening og strukturstudier"},"Troms","Lytix Biopharma AS","Marin bioprospektering",2012.0,66.0]
[{"$f":"HYPERLINK(\"http://mabit.no/prosjekt65\",\"SALFRESH - Utviking av skånsom produksjonsprosess for lakseolje til humant konsum\")","v":"SALFRESH - Utviking av skånsom produksjonsprosess for lakseolje til humant konsum"},"Nordland","Nordlaks Produkter AS","Marin biprodukter",2012.0,65.0]
[{"$f":"HYPERLINK(\"http://mabit.no/prosjekt64\",\"Syntese og bioaktivitets-studier av lavmolekylære forbindelser fra sjøpung\")","v":"Syntese og bioaktivitets-studier av lavmolekylære forbindelser fra sjøpung"},"Troms","Norges Fiskerihøgskole, Universitetet i Tromsø","Marin bioprospektering",2012.0,64.0]
[{"$f":"HYPERLINK(\"http://mabit.no/prosjekt63\",\"The development of In Vitro Oxidative Folding Competencies in Di-sulfide Rich Peptides\")","v":"The development of In Vitro Oxidative Folding Competencies in Di-sulfide Rich Peptides"},"Troms","Norut","Marin bioprospektering",2012.0,63.0]
[{"$f":"HYPERLINK(\"http://mabit.no/prosjekt62\",\"The use of functional feed to improve the overall performance of Atlantic salmon smolt\")","v":"The use of functional feed to improve the overall performance of Atlantic salmon smolt"},"Nordland","BioMar AS","Akvakultur og fiskehelse",2012.0,62.0]
[{"$f":"HYPERLINK(\"http://mabit.no/prosjekt61\",\"Up-scaling of synthesis of some bioactive marine lipids\")","v":"Up-scaling of synthesis of some bioactive marine lipids"},"Troms","Norut","Marin bioprospektering",2012.0,61.0]
[{"$f":"HYPERLINK(\"http://mabit.no/prosjekt60\",\"Utvinning av bredbands UVR – filter og collagen fra fiskeskinn\")","v":"Utvinning av bredbands UVR – filter og collagen fra fiskeskinn"},"Troms","Universitetet i Tromsø, BFE","Marin biprodukter",2012.0,60.0]
[{"$f":"HYPERLINK(\"http://mabit.no/prosjekt59\",\"Verdens beste tran\")","v":"Verdens beste tran"},"Nordland","Vesteraalens AS","Marin biprodukter",2012.0,59.0]
[{"$f":"HYPERLINK(\"http://mabit.no/prosjekt58\",\"Verktøy for vaksineutvikling mot hjerte- og skjelettmuskel betennelse (HSMB) i laks\")","v":"Verktøy for vaksineutvikling mot hjerte- og skjelettmuskel betennelse (HSMB) i laks"},"Troms","Nofima","Akvakultur og fiskehelse",2012.0,58.0]
[{"$f":"HYPERLINK(\"http://mabit.no/prosjekt57\",\"Analyse av det virale metagenomet i marint sediment\")","v":"Analyse av det virale metagenomet i marint sediment"},"Troms","Universitet i Tromsø","Marin bioprospektering",2011.0,57.0]
[{"$f":"HYPERLINK(\"http://mabit.no/prosjekt56\",\"Antioksidant- og anti-inflamatorisk effekt i relasjon til utviklinger av lesjoner i musemodell: Sammenligning mellom komponent X, kråkeboller og Olivita\")","v":"Antioksidant- og anti-inflamatorisk effekt i relasjon til utviklinger av lesjoner i musemodell: Sammenligning mellom komponent X, kråkeboller og Olivita"},"Troms","ABC Bioscience","Marin bioprospektering",2011.0,56.0]
[{"$f":"HYPERLINK(\"http://mabit.no/prosjekt55\",\"Biosurfactants from marine microorganisms\")","v":"Biosurfactants from marine microorganisms"},"Nordland","Norut Narvik","Marin bioprospektering",2011.0,55.0]
[{"$f":"HYPERLINK(\"http://mabit.no/prosjekt54\",\"Etablering av ny dyremodell (blodtrykksregulering) ved UiT\")","v":"Etablering av ny dyremodell (blodtrykksregulering) ved UiT"},"Troms","U*niversitetet i Tromsø, BFE","Marin bioprospektering",2011.0,54.0]
[{"$f":"HYPERLINK(\"http://mabit.no/prosjekt53\",\"Fish Plastics\")","v":"Fish Plastics"},"Troms","Universitetet i Tromsø","Marin biprodukter",2011.0,53.0]
[{"$f":"HYPERLINK(\"http://mabit.no/prosjekt52\",\"Functional tools to estimate egg quality in Atlantic salmon, with particular reference to postovulatory aging (POA)\")","v":"Functional tools to estimate egg quality in Atlantic salmon, with particular reference to postovulatory aging (POA)"},"Nordland","Universitetet i Nordland","Akvakultur og fiskehelse",2011.0,52.0]
[{"$f":"HYPERLINK(\"http://mabit.no/prosjekt51\",\"GENOpipe - a pipeline for analysis, visualization and management of genomic and metagenomic data\")","v":"GENOpipe - a pipeline for analysis, visualization and management of genomic and metagenomic data"},"Troms","Universitetet i Tromsø","Marin bioprospektering",2011.0,51.0]
[{"$f":"HYPERLINK(\"http://mabit.no/prosjekt50\",\"High fidelity sequencing of oil reservoir metagenomes\")","v":"High fidelity sequencing of oil reservoir metagenomes"},"Andre","Sintef","Marin bioprospektering",2011.0,50.0]
[{"$f":"HYPERLINK(\"http://mabit.no/prosjekt49\",\"Kartlegging av ACE-hemmende peptider i Marealis peptidkonsentrat\")","v":"Kartlegging av ACE-hemmende peptider i Marealis peptidkonsentrat"},"Troms","Marealis AS","Marin bioprospektering",2011.0,49.0]
[{"$f":"HYPERLINK(\"http://mabit.no/prosjekt48\",\"Levende kongekrabbe - optimal lagring og sending\")","v":"Levende kongekrabbe - optimal lagring og sending"},"Finnmark","Norway King Crab Production AS","Akvakultur og fiskehelse",2011.0,48.0]
[{"$f":"HYPERLINK(\"http://mabit.no/prosjekt47\",\"Lipolytiske enzymer fra arktisk metagenom\")","v":"Lipolytiske enzymer fra arktisk metagenom"},"Troms","Universitetet i Tromsø, BFE","Marin bioprospektering",2011.0,47.0]
[{"$f":"HYPERLINK(\"http://mabit.no/prosjekt46\",\"Massedyrking av marine nordige/arktiske mikroalger til industrielle formål\")","v":"Massedyrking av marine nordige/arktiske mikroalger til industrielle formål"},"Troms","Universitetet i Tromsø","Marin bioprospektering",2011.0,46.0]
[{"$f":"HYPERLINK(\"http://mabit.no/prosjekt45\",\"Merveridi FPI - Molekylær membranfiltrering\")","v":"Merveridi FPI - Molekylær membranfiltrering"},"Nordland","Norcape","Marin biprodukter",2011.0,45.0]
[{"$f":"HYPERLINK(\"http://mabit.no/prosjekt44\",\"Multi-sensitive HTS assays for antimicrobial activity screening\")","v":"Multi-sensitive HTS assays for antimicrobial activity screening"},"Troms","Universitetet i Tromsø","Marin bioprospektering",2011.0,44.0]
[{"$f":"HYPERLINK(\"http://mabit.no/prosjekt43\",\"Overflatemodifisering for å hindre bakterievekst på gytematter i leppefiskoppdrett\")","v":"Overflatemodifisering for å hindre bakterievekst på gytematter i leppefiskoppdrett"},"Andre","Sintef","Akvakultur og fiskehelse",2011.0,43.0]
[{"$f":"HYPERLINK(\"http://mabit.no/prosjekt42\",\"Protein kinase inhibitor lead design based on marine bioprospecting hits and other binding fragment data\")","v":"Protein kinase inhibitor lead design based on marine bioprospecting hits and other binding fragment data"},"Troms","Universitetet i Tromsø","Marin bioprospektering",2011.0,42.0]
[{"$f":"HYPERLINK(\"http://mabit.no/prosjekt41\",\"Rognkjeks som biologisk avlusningsmetode - for oppdrettslaks og torsk i Nord-Norge (NORDLUS)\")","v":"Rognkjeks som biologisk avlusningsmetode - for oppdrettslaks og torsk i Nord-Norge (NORDLUS)"},"Troms","Akvaplan-Niva","Akvakultur og fiskehelse",2011.0,41.0]
[{"$f":"HYPERLINK(\"http://mabit.no/prosjekt40\",\"Targeted gonad ablation in zebrafish\")","v":"Targeted gonad ablation in zebrafish"},"Nordland","Universitetet i Nordland","Akvakultur og fiskehelse",2011.0,40.0]
[{"$f":"HYPERLINK(\"http://mabit.no/prosjekt39\",\"Utnyttelse av rygger og hoder i Vesteraalens AS: Markedsmuligheter basert på optimale råvarer, prosessdesign og sentrale kvalitetsegenskaper\")","v":"Utnyttelse av rygger og hoder i Vesteraalens AS: Markedsmuligheter basert på optimale råvarer, prosessdesign og sentrale kvalitetsegenskaper"},"Nordland","Vesteraalens AS,","Marin biprodukter",2011.0,39.0]
[{"$f":"HYPERLINK(\"http://mabit.no/prosjekt38\",\"Utvikling av francisellose vaksine for torsk\")","v":"Utvikling av francisellose vaksine for torsk"},"Troms","Nofima Marin","Akvakultur og fiskehelse",2011.0,38.0]
[{"$f":"HYPERLINK(\"http://mabit.no/prosjekt37\",\"Utvikling av klinisk dokumentasjon av Calanus ® Oil med sikte på industrialisering og internasjonal markedslansering\")","v":"Utvikling av klinisk dokumentasjon av Calanus ® Oil med sikte på industrialisering og internasjonal markedslansering"},"Troms","Calanus AS","Marin bioprospektering",2011.0,37.0]
[{"$f":"HYPERLINK(\"http://mabit.no/prosjekt36\",\"«From feed composition to reproductive performance - a liver perspective»\")","v":"«From feed composition to reproductive performance - a liver perspective»"},"Nordland","Universitetet i Nordland","Akvakultur og fiskehelse",2011.0,36.0]
[{"$f":"HYPERLINK(\"http://mabit.no/prosjekt35\",\"«Viktigheten av strukturbrytere og lipolyse i farmakokinetikk av marine fosfolipider og fettløselige legemidler»\")","v":"«Viktigheten av strukturbrytere og lipolyse i farmakokinetikk av marine fosfolipider og fettløselige legemidler»"},"Troms","ConCordix Pharma AS","Marin biprodukter",2011.0,35.0]
[{"$f":"HYPERLINK(\"http://mabit.no/prosjekt34\",\"Antioksidant- og antiinflammatoriske effekter i relasjon til utvikling av lesjoner i musemodell: Effekter av kaldpresset hvalolje og ekstraksjonsprodukter fra hvalolje\")","v":"Antioksidant- og antiinflammatoriske effekter i relasjon til utvikling av lesjoner i musemodell: Effekter av kaldpresset hvalolje og ekstraksjonsprodukter fra hvalolje"},"Troms","Universitet i Tromsø, BFE","Marin biprodukter",2010.0,34.0]
[{"$f":"HYPERLINK(\"http://mabit.no/prosjekt33\",\"Biomarkers of inherited lice resistance in Atlantic salmon\")","v":"Biomarkers of inherited lice resistance in Atlantic salmon"},"Troms","Nofima Marin","Marin bioprospektering",2010.0,33.0]
[{"$f":"HYPERLINK(\"http://mabit.no/prosjekt32\",\"Bioprospektering i arktiske marine metatranskriptomer (BIOPAMM); kartlegging av aktivitet og søk etter bioaktive stoffer i eukaryote mikrober fra havområdene rundt Svalbard.\")","v":"Bioprospektering i arktiske marine metatranskriptomer (BIOPAMM); kartlegging av aktivitet og søk etter bioaktive stoffer i eukaryote mikrober fra havområdene rundt Svalbard."},"Andre","UNIS, avd. for Arktisk Biologi","Marin bioprospektering",2010.0,32.0]
[{"$f":"HYPERLINK(\"http://mabit.no/prosjekt31\",\"Development of new technologies for sustainable and environmental friendly farming of Atlantic cod in the North\")","v":"Development of new technologies for sustainable and environmental friendly farming of Atlantic cod in the North"},"Nordland","Høgskolen i Bodø","Akvakultur og fiskehelse",2010.0,31.0]
[{"$f":"HYPERLINK(\"http://mabit.no/prosjekt30\",\"Dokumentasjon av vekst- og immune stimulerende effekter ved bruk av unike bioaktive peptider fra fisk til ny anvendelse i fôr til kylling for bedret økonomi og helse.\")","v":"Dokumentasjon av vekst- og immune stimulerende effekter ved bruk av unike bioaktive peptider fra fisk til ny anvendelse i fôr til kylling for bedret økonomi og helse."},"Nordland","Norcape Biotechnology","Marin biprodukter",2010.0,30.0]
[{"$f":"HYPERLINK(\"http://mabit.no/prosjekt29\",\"Fôringrediensers virkning på lakselus\")","v":"Fôringrediensers virkning på lakselus"},"Nordland","Høgskolen i Bodø","Akvakultur og fiskehelse",2010.0,29.0]
[{"$f":"HYPERLINK(\"http://mabit.no/prosjekt28\",\"Forprosjekt på identifisering og utvikling av Endonuclease I inhibitor for kommersiell utnyttelse\")","v":"Forprosjekt på identifisering og utvikling av Endonuclease I inhibitor for kommersiell utnyttelse"},"Troms","NorStruct, UiT","Marin bioprospektering",2010.0,28.0]
[{"$f":"HYPERLINK(\"http://mabit.no/prosjekt27\",\"Identifisering av arktiske plantearter med positive effekter på hud\")","v":"Identifisering av arktiske plantearter med positive effekter på hud"},"Troms","Scandinavian Dermal Innovation AS","Marin bioprospektering",2010.0,27.0]
[{"$f":"HYPERLINK(\"http://mabit.no/prosjekt26\",\"Industrial potential of antifreeze proteins (AF(G)Ps) from marine fishes in Arctic Norway - initial screening of species\")","v":"Industrial potential of antifreeze proteins (AF(G)Ps) from marine fishes in Arctic Norway - initial screening of species"},"Troms","Universitetet i Tromsø","Marin bioprospektering",2010.0,26.0]
[{"$f":"HYPERLINK(\"http://mabit.no/prosjekt25\",\"Kinase Inhibitor fra Marin Bioprospektering\")","v":"Kinase Inhibitor fra Marin Bioprospektering"},"Troms","Lytix Biopharma AS","Marin bioprospektering",2010.0,25.0]
[{"$f":"HYPERLINK(\"http://mabit.no/prosjekt24\",\"New lead compound for tuberculosis treatment\")","v":"New lead compound for tuberculosis treatment"},"Troms","Universitetet i Tromsø, Kjemi","Marin bioprospektering",2010.0,24.0]
[{"$f":"HYPERLINK(\"http://mabit.no/prosjekt23\",\"Novel approach for the treatment of cancer\")","v":"Novel approach for the treatment of cancer"},"Troms","Interogen AS","Marin bioprospektering",2010.0,23.0]
[{"$f":"HYPERLINK(\"http://mabit.no/prosjekt22\",\"Undersøkelse av nord norsk makroalge arter for antibakteriell aktivitet på tarm indikator bakterier hos landdyr og fisk (ALGEBAKT)\")","v":"Undersøkelse av nord norsk makroalge arter for antibakteriell aktivitet på tarm indikator bakterier hos landdyr og fisk (ALGEBAKT)"},"Nordland","Bioforsk Nord Bodø","Marin bioprospektering",2010.0,22.0]
[{"$f":"HYPERLINK(\"http://mabit.no/prosjekt21\",\"Utvikling av fôrmidler til leppefisk\")","v":"Utvikling av fôrmidler til leppefisk"},"Troms","Troms Fiskeindustri 2 AS","Akvakultur og fiskehelse",2010.0,21.0]
[{"$f":"HYPERLINK(\"http://mabit.no/prosjekt20\",\"Utvikling av profylaktiske tiltak mot laksefisk parasitten Parvicapsula pseudobranchicola; med fokus på lokalisering og vaksinekandidater\")","v":"Utvikling av profylaktiske tiltak mot laksefisk parasitten Parvicapsula pseudobranchicola; med fokus på lokalisering og vaksinekandidater"},"Nordland","Mainstream Norway","Akvakultur og fiskehelse",2010.0,20.0]
[{"$f":"HYPERLINK(\"http://mabit.no/prosjekt19\",\"Beskyttelse av biologiske substrater, inkludert marine oljer ved bruk av lavmolekylære antioksidative forbindelser med opphav fra det marine og terrestriske miljø\")","v":"Beskyttelse av biologiske substrater, inkludert marine oljer ved bruk av lavmolekylære antioksidative forbindelser med opphav fra det marine og terrestriske miljø"},"Troms","ProBio Pharmaceuticals AS","Marin bioprospektering",2009.0,19.0]
[{"$f":"HYPERLINK(\"http://mabit.no/prosjekt18\",\"Kaldtvannstilpassede enzymer - en oppdagelsesferd innenfor et spennende forretningsområde\")","v":"Kaldtvannstilpassede enzymer - en oppdagelsesferd innenfor et spennende forretningsområde"},"Finnmark","Holmfjord AS, Børselv","Marin bioprospektering",2009.0,18.0]
[{"$f":"HYPERLINK(\"http://mabit.no/prosjekt17\",\"Kinase hemmere fra marin bioprospektering: - utvidet screening (del2)\")","v":"Kinase hemmere fra marin bioprospektering: - utvidet screening (del2)"},"Troms","Lytix Biopharma AS","Marin bioprospektering",2009.0,17.0]
[{"$f":"HYPERLINK(\"http://mabit.no/prosjekt16\",\"Monitoring and control of marine pool ecosystem: a step toward organic cod farming (Part I)\")","v":"Monitoring and control of marine pool ecosystem: a step toward organic cod farming (Part I)"},"Nordland","Bioforsk Nord Bodø","Akvakultur og fiskehelse",2009.0,16.0]
[{"$f":"HYPERLINK(\"http://mabit.no/prosjekt15\",\"Monitoring and control of marine pool ecosystem: a step toward organic cod farming (Part II)\")","v":"Monitoring and control of marine pool ecosystem: a step toward organic cod farming (Part II)"},"Nordland","Bioforsk Nord Bodø","Akvakultur og fiskehelse",2009.0,15.0]
[{"$f":"HYPERLINK(\"http://mabit.no/prosjekt14\",\"Naturlig astaxanthin fra mikroalger (Del 2)\")","v":"Naturlig astaxanthin fra mikroalger (Del 2)"},"Nordland","Promar Aqua AS, Oslo","Marin biprodukter",2009.0,14.0]
[{"$f":"HYPERLINK(\"http://mabit.no/prosjekt13\",\"Produksjon og applikasjonstesting av en marin salttolerant endonuclease I\")","v":"Produksjon og applikasjonstesting av en marin salttolerant endonuclease I"},"Troms","Biotec Pharmacon ASA","Marin bioprospektering",2009.0,13.0]
[{"$f":"HYPERLINK(\"http://mabit.no/prosjekt12\",\"Produksjonsprosess for utnyttelse av rauåte til høykostprodukter (Del 1)\")","v":"Produksjonsprosess for utnyttelse av rauåte til høykostprodukter (Del 1)"},"Troms","Calanus AS","Marin bioprospektering",2009.0,12.0]
[{"$f":"HYPERLINK(\"http://mabit.no/prosjekt11\",\"Produksjonsprosess for utnyttelse av rauåte til høykostprodukter (Del 2)\")","v":"Produksjonsprosess for utnyttelse av rauåte til høykostprodukter (Del 2)"},"Troms","Calanus AS","Marin bioprospektering",2009.0,11.0]
[{"$f":"HYPERLINK(\"http://mabit.no/prosjekt10\",\"Storskala analyser av torskens transkriptom: populasjoner, miljøtilpasninger, genomikk, akvakuktur\")","v":"Storskala analyser av torskens transkriptom: populasjoner, miljøtilpasninger, genomikk, akvakuktur"},"Troms","Universtietet i Tromsø, IMB","Marin bioprospektering",2009.0,10.0]
[{"$f":"HYPERLINK(\"http://mabit.no/prosjekt9\",\"Use of marine alginates to deliver bioactive compounds to reduce diseases in Atlantic salmon production in Northern Norway\")","v":"Use of marine alginates to deliver bioactive compounds to reduce diseases in Atlantic salmon production in Northern Norway"},"Troms","Ewos Innovation","Akvakultur og fiskehelse",2009.0,9.0]
[{"$f":"HYPERLINK(\"http://mabit.no/prosjekt8\",\"Utvikling av vehikler for kontrollert levering av kosttilskudd og legemidler\")","v":"Utvikling av vehikler for kontrollert levering av kosttilskudd og legemidler"},"Troms","Ayanda","Marin biprodukter",2009.0,8.0]
[{"$f":"HYPERLINK(\"http://mabit.no/prosjekt7\",\"Vaccines against infectious salmon anaemia virus in Atlantic salmon – efficacy, ability to reduce the number of healthy carriers and development of in vitro tools for evaluation of vaccine candidates\")","v":"Vaccines against infectious salmon anaemia virus in Atlantic salmon – efficacy, ability to reduce the number of healthy carriers and development of in vitro tools for evaluation of vaccine candidates"},"Troms","Nofima Marin","Akvakultur og fiskehelse",2009.0,7.0]
[{"$f":"HYPERLINK(\"http://mabit.no/prosjekt6\",\"Fullengde-sekvensering av metagenomiske fosmidkloner\")","v":"Fullengde-sekvensering av metagenomiske fosmidkloner"},"Troms","Universtitetet i Tromsø, IMB og NFH","Marin bioprospektering",2008.0,6.0]
[{"$f":"HYPERLINK(\"http://mabit.no/prosjekt5\",\"Utvikling av musemodell for dokumentasjon av marine ingredienser i funksjonell mat\")","v":"Utvikling av musemodell for dokumentasjon av marine ingredienser i funksjonell mat"},"Troms","norinnova","Marin bioprospektering",2008.0,5.0]
[{"$f":"HYPERLINK(\"http://mabit.no/prosjekt4\",\"Antioksydanter til produksjon av frysetørket produkt fra filetavskjær – holdbarhets-undersøkelse\")","v":"Antioksydanter til produksjon av frysetørket produkt fra filetavskjær – holdbarhets-undersøkelse"},"Troms","Drytech AS","Marin biprodukter",2007.0,4.0]
[{"$f":"HYPERLINK(\"http://mabit.no/prosjekt3\",\"Effektiv pre-prosessering og fraksjonering av n-3 LCPUFA\")","v":"Effektiv pre-prosessering og fraksjonering av n-3 LCPUFA"},"Nordland","Noromega","Marin biprodukter",2007.0,3.0]
[{"$f":"HYPERLINK(\"http://mabit.no/prosjekt2\",\"Genomsekvensering av vintersårbakteriene: Moritella viscosa (ex. Vibrio viscosus) og Vibrio wodanis.\")","v":"Genomsekvensering av vintersårbakteriene: Moritella viscosa (ex. Vibrio viscosus) og Vibrio wodanis."},"Troms","Universitetet i Tromsø, IMB","Marin bioprospektering",2007.0,2.0]
[{"$f":"HYPERLINK(\"http://mabit.no/prosjekt1\",\"Kinase hemmere fra marin bioprospektering: - utvidet screening (del1)\")","v":"Kinase hemmere fra marin bioprospektering: - utvidet screening (del1)"},"Troms","Lytix Biopharma AS","Marin bioprospektering",2007.0,1.0]

{"sheet":"Fylket","index":1,"n_rows":105,"n_cols":6,"rows_kept":105,"cut":false,"hidden":false,"merged":[]}
["Projektnavn","Fylke","Prosjektsøker","Prosjekttype","År","Prosjekt #"]
[{"$f":"HYPERLINK(\"http://mabit.no/prosjekt104\",\"Direct analysis of bioactive marine peptides in blood and tissue\")","v":"Direct analysis of bioactive marine peptides in blood and tissue"},"Troms","Norut Tromsø AS","Marin biprodukter",2015.0,104.0]
[{"$f":"HYPERLINK(\"http://mabit.no/prosjekt103\",\"Feasibility of using enzymes for conversion of chitin hydrolysates to sialic acid with commercial potential\")","v":"Feasibility of using enzymes for conversion of chitin hydrolysates to sialic acid with commercial potential"},"Troms","UiT- Norges arktiske universitet","Marin bioprospektering",2015.0,103.0]
[{"$f":"HYPERLINK(\"http://mabit.no/prosjekt102\",\"Frysetørkede laksebiter\")","v":"Frysetørkede laksebiter"},"Troms","Drytech AS","Marin biprodukter",2015.0,102.0]
[{"$f":"HYPERLINK(\"http://mabit.no/prosjekt101\",\"Jernabsorbsjon fra nytt hemoglobinpulver\")","v":"Jernabsorbsjon fra nytt hemoglobinpulver"},"Troms","Nofima","Marin biprodukter",2015.0,101.0]
[{"$f":"HYPERLINK(\"http://mabit.no/prosjekt99\",\"Screening of Marine Extract Fractions by Bacillus Mode of Action specific BioSensors (BMABioS)\")","v":"Screening of Marine Extract Fractions by Bacillus Mode of Action specific BioSensors (BMABioS)"},"Troms","UiT- Norges arktiske universitet, NFH","Marin bioprospektering",2015.0,99.0]
[{"$f":"HYPERLINK(\"http://mabit.no/prosjekt97\",\"Securing commerciability of anticancer activities identified for diketopiperazines derived from marine bioprospecting.\")","v":"Securing commerciability of anticancer activities identified for diketopiperazines derived from marine bioprospecting."},"Troms","UiT- Norges arktiske universitet","Marin bioprospektering",2015.0,97.0]
[{"$f":"HYPERLINK(\"http://mabit.no/prosjekt96\",\"Økt kvalitet i snøkrabbeindustrien gjennom hindring av misfarging - NoBlueCrab\")","v":"Økt kvalitet i snøkrabbeindustrien gjennom hindring av misfarging - NoBlueCrab"},"Troms","Nofima","Akvakultur og fiskehelse",2015.0,96.0]
[{"$f":"HYPERLINK(\"http://mabit.no/prosjekt94\",\"Bruk av marine polypeptider for å behandle acne vulgaris\")","v":"Bruk av marine polypeptider for å behandle acne vulgaris"},"Troms","UiT Norges arktiske universitet, Norge fiskerihøgskole","Marin bioprospektering",2014.0,94.0]
[{"$f":"HYPERLINK(\"http://mabit.no/prosjekt92\",\"Development of heterobifunctional linkers for the synthesis of marine-based anticancer prodrugs\")","v":"Development of heterobifunctional linkers for the synthesis of marine-based anticancer prodrugs"},"Troms","Norut","Marin bioprospektering",2014.0,92.0]
[{"$f":"HYPERLINK(\"http://mabit.no/prosjekt90\",\"Exploring the surface of crop plants as natural source for noxious weed repellents\")","v":"Exploring the surface of crop plants as natural source for noxious weed repellents"},"Troms","Universitetet i Tromsø, Institutt for arktisk og marin biologi","Marin bioprospektering",2014.0,90.0]
[{"$f":"HYPERLINK(\"http://mabit.no/prosjekt89\",\"Halozymes -Halofile enzymer med industriellt potensiale\")","v":"Halozymes -Halofile enzymer med industriellt potensiale"},"Troms","Barentzymes AS","Marin bioprospektering",2014.0,89.0]
[{"$f":"HYPERLINK(\"http://mabit.no/prosjekt88\",\"Hit-to-lead drug evaluation of marine natural product mimics with antimicrobial and anticancer activity\")","v":"Hit-to-lead drug evaluation of marine natural product mimics with antimicrobial and anticancer activity"},"Troms","Universitetet i Tromsø, Institutt for Farmasi","Marin bioprospektering",2014.0,88.0]
[{"$f":"HYPERLINK(\"http://mabit.no/prosjekt87\",\"Sammenligning av opptaks-hastigheter av EPA og DHA fra Calanus Oil og Ethylester (EE) fra fiskeolje hos menneske\")","v":"Sammenligning av opptaks-hastigheter av EPA og DHA fra Calanus Oil og Ethylester (EE) fra fiskeolje hos menneske"},"Troms","Calanus AS","Marin biprodukter",2014.0,87.0]
[{"$f":"HYPERLINK(\"http://mabit.no/prosjekt86\",\"The use of interferon in protection of Atlantic salmon against salmon pancreas disease virus\")","v":"The use of interferon in protection of Atlantic salmon against salmon pancreas disease virus"},"Troms","Universitetet i Tromsø, NFH","Akvakultur og fiskehelse",2014.0,86.0]
[{"$f":"HYPERLINK(\"http://mabit.no/prosjekt85\",\"Development of methods for short and long-term storage of sperm from sp. wolffish (CRYWOLF)\")","v":"Development of methods for short and long-term storage of sperm from sp. wolffish (CRYWOLF)"},"Troms","Akvaplan-niva AS","Akvakultur og fiskehelse",2013.0,85.0]
[{"$f":"HYPERLINK(\"http://mabit.no/prosjekt84\",\"Enzymer fra kongekrabbe til nedbryting av restråstoff fra laks og kylling\")","v":"Enzymer fra kongekrabbe til nedbryting av restråstoff fra laks og kylling"},"Troms","Nofima AS","Marin biprodukter",2013.0,84.0]
[{"$f":"HYPERLINK(\"http://mabit.no/prosjekt83\",\"Etablere smittemodeller for nord-norsk rognkjeks for fremtidig sykdomsbekjempelse og vaksineutvikling.\")","v":"Etablere smittemodeller for nord-norsk rognkjeks for fremtidig sykdomsbekjempelse og vaksineutvikling."},"Troms","Nofima AS","Akvakultur og fiskehelse",2013.0,83.0]
[{"$f":"HYPERLINK(\"http://mabit.no/prosjekt82\",\"Etablering av cellulære assays for screening av nye kinaseinhibitorer.\")","v":"Etablering av cellulære assays for screening av nye kinaseinhibitorer."},"Troms","Universitetet i Tromsø, Institutt for Farmasi","Marin bioprospektering",2013.0,82.0]
[{"$f":"HYPERLINK(\"http://mabit.no/prosjekt80\",\"Frigivelse av lukt- og smakstoffer fra kunstig og naturlig agn\")","v":"Frigivelse av lukt- og smakstoffer fra kunstig og naturlig agn"},"Troms","Polybait AS","Marin biprodukter",2013.0,80.0]
[{"$f":"HYPERLINK(\"http://mabit.no/prosjekt79\",\"HerrZyme - Enzymekarakterisering og teknologiutvikling for kommersialisering av enzym fra restråstoff av sild\")","v":"HerrZyme - Enzymekarakterisering og teknologiutvikling for kommersialisering av enzym fra restråstoff av sild"},"Troms","Nofima AS","Marin biprodukter",2013.0,79.0]
[{"$f":"HYPERLINK(\"http://mabit.no/prosjekt78\",\"Hjertehelse som risikofaktor for slaktedødelighet i Nord-Norge\")","v":"Hjertehelse som risikofaktor for slaktedødelighet i Nord-Norge"},"Troms","Lerøy Aurora AS","Akvakultur og fiskehelse",2013.0,78.0]
[{"$f":"HYPERLINK(\"http://mabit.no/prosjekt77\",\"Produktutvikling av OliVita olje vha ny teknologi for smaksmarkering og smakstilsetning\")","v":"Produktutvikling av OliVita olje vha ny teknologi for smaksmarkering og smakstilsetning"},"Troms","OliVita AS","Marin biprodukter",2013.0,77.0]
[{"$f":"HYPERLINK(\"http://mabit.no/prosjekt76\",\"Utvinning og testing av bio-aktive substanser fra restråstoff\")","v":"Utvinning og testing av bio-aktive substanser fra restråstoff"},"Troms","ScandiDerma AS","Marin bioprospektering",2013.0,76.0]
[{"$f":"HYPERLINK(\"http://mabit.no/prosjekt74\",\"Baculovirus expression of key drug discovery targets\")","v":"Baculovirus expression of key drug discovery targets"},"Troms","Universitet i Tromsø","Marin bioprospektering",2012.0,74.0]
[{"$f":"HYPERLINK(\"http://mabit.no/prosjekt73\",\"Bioactive Interfaces\")","v":"Bioactive Interfaces"},"Troms","Universitet i Tromsø","Marin bioprospektering",2012.0,73.0]
[{"$f":"HYPERLINK(\"http://mabit.no/prosjekt71\",\"Etablering av dyremodell for blodtrykksregulering ved UiT\")","v":"Etablering av dyremodell for blodtrykksregulering ved UiT"},"Troms","BFE, Universitetet i Tromsø","Marin biprodukter",2012.0,71.0]
[{"$f":"HYPERLINK(\"http://mabit.no/prosjekt70\",\"Forskning på proteinhydrolysater som attraktant kilder til Polybait agn\")","v":"Forskning på proteinhydrolysater som attraktant kilder til Polybait agn"},"Troms","Polybait AS","Marin biprodukter",2012.0,70.0]
[{"$f":"HYPERLINK(\"http://mabit.no/prosjekt68\",\"Northern Competence Group: Aquaculture Clinical Nutrition\")","v":"Northern Competence Group: Aquaculture Clinical Nutrition"},"Troms","EWOS Innovation","Akvakultur og fiskehelse",2012.0,68.0]
[{"$f":"HYPERLINK(\"http://mabit.no/prosjekt67\",\"Oppsett av screening plattform for testing av dermatologiske indikasjoner\")","v":"Oppsett av screening plattform for testing av dermatologiske indikasjoner"},"Troms","Scandinavian Dermal Innovation","Marin bioprospektering",2012.0,67.0]
[{"$f":"HYPERLINK(\"http://mabit.no/prosjekt66\",\"Produksjon av nye protein kinase targets for screening og strukturstudier\")","v":"Produksjon av nye protein kinase targets for screening og strukturstudier"},"Troms","Lytix Biopharma AS","Marin bioprospektering",2012.0,66.0]
[{"$f":"HYPERLINK(\"http://mabit.no/prosjekt64\",\"Syntese og bioaktivitets-studier av lavmolekylære forbindelser fra sjøpung\")","v":"Syntese og bioaktivitets-studier av lavmolekylære forbindelser fra sjøpung"},"Troms","Norges Fiskerihøgskole, Universitetet i Tromsø","Marin bioprospektering",2012.0,64.0]
[{"$f":"HYPERLINK(\"http://mabit.no/prosjekt63\",\"The development of In Vitro Oxidative Folding Competencies in Di-sulfide Rich Peptides\")","v":"The development of In Vitro Oxidative Folding Competencies in Di-sulfide Rich Peptides"},"Troms","Norut","Marin bioprospektering",2012.0,63.0]
[{"$f":"HYPERLINK(\"http://mabit.no/prosjekt61\",\"Up-scaling of synthesis of some bioactive marine lipids\")","v":"Up-scaling of synthesis of some bioactive marine lipids"},"Troms","Norut","Marin bioprospektering",2012.0,61.0]
[{"$f":"HYPERLINK(\"http://mabit.no/prosjekt60\",\"Utvinning av bredbands UVR – filter og collagen fra fiskeskinn\")","v":"Utvinning av bredbands UVR – filter og collagen fra fiskeskinn"},"Troms","Universitetet i Tromsø, BFE","Marin biprodukter",2012.0,60.0]
[{"$f":"HYPERLINK(\"http://mabit.no/prosjekt58\",\"Verktøy for vaksineutvikling mot hjerte- og skjelettmuskel betennelse (HSMB) i laks\")","v":"Verktøy for vaksineutvikling mot hjerte- og skjelettmuskel betennelse (HSMB) i laks"},"Troms","Nofima","Akvakultur og fiskehelse",2012.0,58.0]
[{"$f":"HYPERLINK(\"http://mabit.no/prosjekt57\",\"Analyse av det virale metagenomet i marint sediment\")","v":"Analyse av det virale metagenomet i marint sediment"},"Troms","Universitet i Tromsø","Marin bioprospektering",2011.0,57.0]
[{"$f":"HYPERLINK(\"http://mabit.no/prosjekt56\",\"Antioksidant- og anti-inflamatorisk effekt i relasjon til utviklinger av lesjoner i musemodell: Sammenligning mellom komponent X, kråkeboller og Olivita\")","v":"Antioksidant- og anti-inflamatorisk effekt i relasjon til utviklinger av lesjoner i musemodell: Sammenligning mellom komponent X, kråkeboller og Olivita"},"Troms","ABC Bioscience","Marin bioprospektering",2011.0,56.0]
[{"$f":"HYPERLINK(\"http://mabit.no/prosjekt54\",\"Etablering av ny dyremodell (blodtrykksregulering) ved UiT\")","v":"Etablering av ny dyremodell (blodtrykksregulering) ved UiT"},"Troms","U*niversitetet i Tromsø, BFE","Marin bioprospektering",2011.0,54.0]
[{"$f":"HYPERLINK(\"http://mabit.no/prosjekt53\",\"Fish Plastics\")","v":"Fish Plastics"},"Troms","Universitetet i Tromsø","Marin biprodukter",2011.0,53.0]
[{"$f":"HYPERLINK(\"http://mabit.no/prosjekt51\",\"GENOpipe - a pipeline for analysis, visualization and management of genomic and metagenomic data\")","v":"GENOpipe - a pipeline for analysis, visualization and management of genomic and metagenomic data"},"Troms","Universitetet i Tromsø","Marin bioprospektering",2011.0,51.0]
[{"$f":"HYPERLINK(\"http://mabit.no/prosjekt49\",\"Kartlegging av ACE-hemmende peptider i Marealis peptidkonsentrat\")","v":"Kartlegging av ACE-hemmende peptider i Marealis peptidkonsentrat"},"Troms","Marealis AS","Marin bioprospektering",2011.0,49.0]
[{"$f":"HYPERLINK(\"http://mabit.no/prosjekt47\",\"Lipolytiske enzymer fra arktisk metagenom\")","v":"Lipolytiske enzymer fra arktisk metagenom"},"Troms","Universitetet i Tromsø, BFE","Marin bioprospektering",2011.0,47.0]
[{"$f":"HYPERLINK(\"http://mabit.no/prosjekt46\",\"Massedyrking av marine nordige/arktiske mikroalger til industrielle formål\")","v":"Massedyrking av marine nordige/arktiske mikroalger til industrielle formål"},"Troms","Universitetet i Tromsø","Marin bioprospektering",2011.0,46.0]
[{"$f":"HYPERLINK(\"http://mabit.no/prosjekt44\",\"Multi-sensitive HTS assays for antimicrobial activity screening\")","v":"Multi-sensitive HTS assays for antimicrobial activity screening"},"Troms","Universitetet i Tromsø","Marin bioprospektering",2011.0,44.0]
[{"$f":"HYPERLINK(\"http://mabit.no/prosjekt42\",\"Protein kinase inhibitor lead design based on marine bioprospecting hits and other binding fragment data\")","v":"Protein kinase inhibitor lead design based on marine bioprospecting hits and other binding fragment data"},"Troms","Universitetet i Tromsø","Marin bioprospektering",2011.0,42.0]
[{"$f":"HYPERLINK(\"http://mabit.no/prosjekt41\",\"Rognkjeks som biologisk avlusningsmetode - for oppdrettslaks og torsk i Nord-Norge (NORDLUS)\")","v":"Rognkjeks som biologisk avlusningsmetode - for oppdrettslaks og torsk i Nord-Norge (NORDLUS)"},"Troms","Akvaplan-Niva","Akvakultur og fiskehelse",2011.0,41.0]
[{"$f":"HYPERLINK(\"http://mabit.no/prosjekt38\",\"Utvikling av francisellose vaksine for torsk\")","v":"Utvikling av francisellose vaksine for torsk"},"Troms","Nofima Marin","Akvakultur og fiskehelse",2011.0,38.0]
[{"$f":"HYPERLINK(\"http://mabit.no/prosjekt37\",\"Utvikling av klinisk dokumentasjon av Calanus ® Oil med sikte på industrialisering og internasjonal markedslansering\")","v":"Utvikling av klinisk dokumentasjon av Calanus ® Oil med sikte på industrialisering og internasjonal markedslansering"},"Troms","Calanus AS","Marin bioprospektering",2011.0,37.0]
[{"$f":"HYPERLINK(\"http://mabit.no/prosjekt35\",\"«Viktigheten av strukturbrytere og lipolyse i farmakokinetikk av marine fosfolipider og fettløselige legemidler»\")","v":"«Viktigheten av strukturbrytere og lipolyse i farmakokinetikk av marine fosfolipider og fettløselige legemidler»"},"Troms","ConCordix Pharma AS","Marin biprodukter",2011.0,35.0]
[{"$f":"HYPERLINK(\"http://mabit.no/prosjekt34\",\"Antioksidant- og antiinflammatoriske effekter i relasjon til utvikling av lesjoner i musemodell: Effekter av kaldpresset hvalolje og ekstraksjonsprodukter fra hvalolje\")","v":"Antioksidant- og antiinflammatoriske effekter i relasjon til utvikling av lesjoner i musemodell: Effekter av kaldpresset hvalolje og ekstraksjonsprodukter fra hvalolje"},"Troms","Universitet i Tromsø, BFE","Marin biprodukter",2010.0,34.0]
[{"$f":"HYPERLINK(\"http://mabit.no/prosjekt33\",\"Biomarkers of inherited lice resistance in Atlantic salmon\")","v":"Biomarkers of inherited lice resistance in Atlantic salmon"},"Troms","Nofima Marin","Marin bioprospektering",2010.0,33.0]
[{"$f":"HYPERLINK(\"http://mabit.no/prosjekt28\",\"Forprosjekt på identifisering og utvikling av Endonuclease I inhibitor for kommersiell utnyttelse\")","v":"Forprosjekt på identifisering og utvikling av Endonuclease I inhibitor for kommersiell utnyttelse"},"Troms","NorStruct, UiT","Marin bioprospektering",2010.0,28.0]
[{"$f":"HYPERLINK(\"http://mabit.no/prosjekt27\",\"Identifisering av arktiske plantearter med positive effekter på hud\")","v":"Identifisering av arktiske plantearter med positive effekter på hud"},"Troms","Scandinavian Dermal Innovation AS","Marin bioprospektering",2010.0,27.0]
[{"$f":"HYPERLINK(\"http://mabit.no/prosjekt26\",\"Industrial potential of antifreeze proteins (AF(G)Ps) from marine fishes in Arctic Norway - initial screening of species\")","v":"Industrial potential of antifreeze proteins (AF(G)Ps) from marine fishes in Arctic Norway - initial screening of species"},"Troms","Universitetet i Tromsø","Marin bioprospektering",2010.0,26.0]
[{"$f":"HYPERLINK(\"http://mabit.no/prosjekt25\",\"Kinase Inhibitor fra Marin Bioprospektering\")","v":"Kinase Inhibitor fra Marin Bioprospektering"},"Troms","Lytix Biopharma AS","Marin bioprospektering",2010.0,25.0]
[{"$f":"HYPERLINK(\"http://mabit.no/prosjekt24\",\"New lead compound for tuberculosis treatment\")","v":"New lead compound for tuberculosis treatment"},"Troms","Universitetet i Tromsø, Kjemi","Marin bioprospektering",2010.0,24.0]
[{"$f":"HYPERLINK(\"http://mabit.no/prosjekt23\",\"Novel approach for the treatment of cancer\")","v":"Novel approach for the treatment of cancer"},"Troms","Interogen AS","Marin bioprospektering",2010.0,23.0]
[{"$f":"HYPERLINK(\"http://mabit.no/prosjekt21\",\"Utvikling av fôrmidler til leppefisk\")","v":"Utvikling av fôrmidler til leppefisk"},"Troms","Troms Fiskeindustri 2 AS","Akvakultur og fiskehelse",2010.0,21.0]
[{"$f":"HYPERLINK(\"http://mabit.no/prosjekt19\",\"Beskyttelse av biologiske substrater, inkludert marine oljer ved bruk av lavmolekylære antioksidative forbindelser med opphav fra det marine og terrestriske miljø\")","v":"Beskyttelse av biologiske substrater, inkludert marine oljer ved bruk av lavmolekylære antioksidative forbindelser med opphav fra det marine og terrestriske miljø"},"Troms","ProBio Pharmaceuticals AS","Marin bioprospektering",2009.0,19.0]
[{"$f":"HYPERLINK(\"http://mabit.no/prosjekt17\",\"Kinase hemmere fra marin bioprospektering: - utvidet screening (del2)\")","v":"Kinase hemmere fra marin bioprospektering: - utvidet screening (del2)"},"Troms","Lytix Biopharma AS","Marin bioprospektering",2009.0,17.0]
[{"$f":"HYPERLINK(\"http://mabit.no/prosjekt13\",\"Produksjon og applikasjonstesting av en marin salttolerant endonuclease I\")","v":"Produksjon og applikasjonstesting av en marin salttolerant endonuclease I"},"Troms","Biotec Pharmacon ASA","Marin bioprospektering",2009.0,13.0]
[{"$f":"HYPERLINK(\"http://mabit.no/prosjekt12\",\"Produksjonsprosess for utnyttelse av rauåte til høykostprodukter (Del 1)\")","v":"Produksjonsprosess for utnyttelse av rauåte til høykostprodukter (Del 1)"},"Troms","Calanus AS","Marin bioprospektering",2009.0,12.0]
[{"$f":"HYPERLINK(\"http://mabit.no/prosjekt11\",\"Produksjonsprosess for utnyttelse av rauåte til høykostprodukter (Del 2)\")","v":"Produksjonsprosess for utnyttelse av rauåte til høykostprodukter (Del 2)"},"Troms","Calanus AS","Marin bioprospektering",2009.0,11.0]
[{"$f":"HYPERLINK(\"http://mabit.no/prosjekt10\",\"Storskala analyser av torskens transkriptom: populasjoner, miljøtilpasninger, genomikk, akvakuktur\")","v":"Storskala analyser av torskens transkriptom: populasjoner, miljøtilpasninger, genomikk, akvakuktur"},"Troms","Universtietet i Tromsø, IMB","Marin bioprospektering",2009.0,10.0]
[{"$f":"HYPERLINK(\"http://mabit.no/prosjekt9\",\"Use of marine alginates to deliver bioactive compounds to reduce diseases in Atlantic salmon production in Northern Norway\")","v":"Use of marine alginates to deliver bioactive compounds to reduce diseases in Atlantic salmon production in Northern Norway"},"Troms","Ewos Innovation","Akvakultur og fiskehelse",2009.0,9.0]
[{"$f":"HYPERLINK(\"http://mabit.no/prosjekt8\",\"Utvikling av vehikler for kontrollert levering av kosttilskudd og legemidler\")","v":"Utvikling av vehikler for kontrollert levering av kosttilskudd og legemidler"},"Troms","Ayanda","Marin biprodukter",2009.0,8.0]
[{"$f":"HYPERLINK(\"http://mabit.no/prosjekt7\",\"Vaccines against infectious salmon anaemia virus in Atlantic salmon – efficacy, ability to reduce the number of healthy carriers and development of in vitro tools for evaluation of vaccine candidates\")","v":"Vaccines against infectious salmon anaemia virus in Atlantic salmon – efficacy, ability to reduce the number of healthy carriers and development of in vitro tools for evaluation of vaccine candidates"},"Troms","Nofima Marin","Akvakultur og fiskehelse",2009.0,7.0]
[{"$f":"HYPERLINK(\"http://mabit.no/prosjekt6\",\"Fullengde-sekvensering av metagenomiske fosmidkloner\")","v":"Fullengde-sekvensering av metagenomiske fosmidkloner"},"Troms","Universtitetet i Tromsø, IMB og NFH","Marin bioprospektering",2008.0,6.0]
[{"$f":"HYPERLINK(\"http://mabit.no/prosjekt5\",\"Utvikling av musemodell for dokumentasjon av marine ingredienser i funksjonell mat\")","v":"Utvikling av musemodell for dokumentasjon av marine ingredienser i funksjonell mat"},"Troms","norinnova","Marin bioprospektering",2008.0,5.0]
[{"$f":"HYPERLINK(\"http://mabit.no/prosjekt4\",\"Antioksydanter til produksjon av frysetørket produkt fra filetavskjær – holdbarhets-undersøkelse\")","v":"Antioksydanter til produksjon av frysetørket produkt fra filetavskjær – holdbarhets-undersøkelse"},"Troms","Drytech AS","Marin biprodukter",2007.0,4.0]
[{"$f":"HYPERLINK(\"http://mabit.no/prosjekt2\",\"Genomsekvensering av vintersårbakteriene: Moritella viscosa (ex. Vibrio viscosus) og Vibrio wodanis.\")","v":"Genomsekvensering av vintersårbakteriene: Moritella viscosa (ex. Vibrio viscosus) og Vibrio wodanis."},"Troms","Universitetet i Tromsø, IMB","Marin bioprospektering",2007.0,2.0]
[{"$f":"HYPERLINK(\"http://mabit.no/prosjekt1\",\"Kinase hemmere fra marin bioprospektering: - utvidet screening (del1)\")","v":"Kinase hemmere fra marin bioprospektering: - utvidet screening (del1)"},"Troms","Lytix Biopharma AS","Marin bioprospektering",2007.0,1.0]
[{"$f":"HYPERLINK(\"http://mabit.no/prosjekt100\",\"Prøvedyrking makroalger i IMTA kontekst for utvinning av proteiner og andre råstoffer til fiskefor\")","v":"Prøvedyrking makroalger i IMTA kontekst for utvinning av proteiner og andre råstoffer til fiskefor"},"Nordland","Folla Alger AS","Marin biprodukter",2015.0,100.0]
[{"$f":"HYPERLINK(\"http://mabit.no/prosjekt98\",\"Sea urchins – a potential source for new carbohydrate active enzymes for bioengineering of seaweed polysaccharides\")","v":"Sea urchins – a potential source for new carbohydrate active enzymes for bioengineering of seaweed polysaccharides"},"Nordland","NIBIO Bodø","Marin bioprospektering",2015.0,98.0]
[{"$f":"HYPERLINK(\"http://mabit.no/prosjekt95\",\"Biprodukter til menneskemat. Utvikling av prosess og produkter for ombordproduksjon.\")","v":"Biprodukter til menneskemat. Utvikling av prosess og produkter for ombordproduksjon."},"Nordland","AS Andenes Havfiskeselskap","Marin biprodukter",2014.0,95.0]
[{"$f":"HYPERLINK(\"http://mabit.no/prosjekt91\",\"Development of seeding procedures for Sushi-Algae (Nori) suited for mariculture in Northern Norway\")","v":"Development of seeding procedures for Sushi-Algae (Nori) suited for mariculture in Northern Norway"},"Nordland","Bioforsk Nord Bodø","Akvakultur og fiskehelse",2014.0,91.0]
[{"$f":"HYPERLINK(\"http://mabit.no/prosjekt81\",\"Fremstille en høykvalitets olje fra torskelever der mest mulig av A-, D- og E vitaminene er bevart i produktet\")","v":"Fremstille en høykvalitets olje fra torskelever der mest mulig av A-, D- og E vitaminene er bevart i produktet"},"Nordland","Wahl Prosess Utvikling AS","Marin biprodukter",2013.0,81.0]
[{"$f":"HYPERLINK(\"http://mabit.no/prosjekt72\",\"Development of a new fish feed concept based on raw materials from aquaculture and fish industry – development of protocols for production\")","v":"Development of a new fish feed concept based on raw materials from aquaculture and fish industry – development of protocols for production"},"Nordland","Bioforsk Bodø","Akvakultur og fiskehelse",2012.0,72.0]
[{"$f":"HYPERLINK(\"http://mabit.no/prosjekt69\",\"Isolation and characterization of Norwegian red algae suitable for commercial mariculture\")","v":"Isolation and characterization of Norwegian red algae suitable for commercial mariculture"},"Nordland","Bioforsk Nord Bodø","Akvakultur og fiskehelse",2012.0,69.0]
[{"$f":"HYPERLINK(\"http://mabit.no/prosjekt65\",\"SALFRESH - Utviking av skånsom produksjonsprosess for lakseolje til humant konsum\")","v":"SALFRESH - Utviking av skånsom produksjonsprosess for lakseolje til humant konsum"},"Nordland","Nordlaks Produkter AS","Marin biprodukter",2012.0,65.0]
[{"$f":"HYPERLINK(\"http://mabit.no/prosjekt62\",\"The use of functional feed to improve the overall performance of Atlantic salmon smolt\")","v":"The use of functional feed to improve the overall performance of Atlantic salmon smolt"},"Nordland","BioMar AS","Akvakultur og fiskehelse",2012.0,62.0]
[{"$f":"HYPERLINK(\"http://mabit.no/prosjekt59\",\"Verdens beste tran\")","v":"Verdens beste tran"},"Nordland","Vesteraalens AS","Marin biprodukter",2012.0,59.0]
[{"$f":"HYPERLINK(\"http://mabit.no/prosjekt55\",\"Biosurfactants from marine microorganisms\")","v":"Biosurfactants from marine microorganisms"},"Nordland","Norut Narvik","Marin bioprospektering",2011.0,55.0]
[{"$f":"HYPERLINK(\"http://mabit.no/prosjekt52\",\"Functional tools to estimate egg quality in Atlantic salmon, with particular reference to postovulatory aging (POA)\")","v":"Functional tools to estimate egg quality in Atlantic salmon, with particular reference to postovulatory aging (POA)"},"Nordland","Universitetet i Nordland","Akvakultur og fiskehelse",2011.0,52.0]
[{"$f":"HYPERLINK(\"http://mabit.no/prosjekt45\",\"Merveridi FPI - Molekylær membranfiltrering\")","v":"Merveridi FPI - Molekylær membranfiltrering"},"Nordland","Norcape","Marin biprodukter",2011.0,45.0]
[{"$f":"HYPERLINK(\"http://mabit.no/prosjekt40\",\"Targeted gonad ablation in zebrafish\")","v":"Targeted gonad ablation in zebrafish"},"Nordland","Universitetet i Nordland","Akvakultur og fiskehelse",2011.0,40.0]
[{"$f":"HYPERLINK(\"http://mabit.no/prosjekt39\",\"Utnyttelse av rygger og hoder i Vesteraalens AS: Markedsmuligheter basert på optimale råvarer, prosessdesign og sentrale kvalitetsegenskaper\")","v":"Utnyttelse av rygger og hoder i Vesteraalens AS: Markedsmuligheter basert på optimale råvarer, prosessdesign og sentrale kvalitetsegenskaper"},"Nordland","Vesteraalens AS,","Marin biprodukter",2011.0,39.0]
[{"$f":"HYPERLINK(\"http://mabit.no/prosjekt36\",\"«From feed composition to reproductive performance - a liver perspective»\")","v":"«From feed composition to reproductive performance - a liver perspective»"},"Nordland","Universitetet i Nordland","Akvakultur og fiskehelse",2011.0,36.0]
[{"$f":"HYPERLINK(\"http://mabit.no/prosjekt31\",\"Development of new technologies for sustainable and environmental friendly farming of Atlantic cod in the North\")","v":"Development of new technologies for sustainable and environmental friendly farming of Atlantic cod in the North"},"Nordland","Høgskolen i Bodø","Akvakultur og fiskehelse",2010.0,31.0]
[{"$f":"HYPERLINK(\"http://mabit.no/prosjekt30\",\"Dokumentasjon av vekst- og immune stimulerende effekter ved bruk av unike bioaktive peptider fra fisk til ny anvendelse i fôr til kylling for bedret økonomi og helse.\")","v":"Dokumentasjon av vekst- og immune stimulerende effekter ved bruk av unike bioaktive peptider fra fisk til ny anvendelse i fôr til kylling for bedret økonomi og helse."},"Nordland","Norcape Biotechnology","Marin biprodukter",2010.0,30.0]
[{"$f":"HYPERLINK(\"http://mabit.no/prosjekt29\",\"Fôringrediensers virkning på lakselus\")","v":"Fôringrediensers virkning på lakselus"},"Nordland","Høgskolen i Bodø","Akvakultur og fiskehelse",2010.0,29.0]
[{"$f":"HYPERLINK(\"http://mabit.no/prosjekt22\",\"Undersøkelse av nord norsk makroalge arter for antibakteriell aktivitet på tarm indikator bakterier hos landdyr og fisk (ALGEBAKT)\")","v":"Undersøkelse av nord norsk makroalge arter for antibakteriell aktivitet på tarm indikator bakterier hos landdyr og fisk (ALGEBAKT)"},"Nordland","Bioforsk Nord Bodø","Marin bioprospektering",2010.0,22.0]
[{"$f":"HYPERLINK(\"http://mabit.no/prosjekt20\",\"Utvikling av profylaktiske tiltak mot laksefisk parasitten Parvicapsula pseudobranchicola; med fokus på lokalisering og vaksinekandidater\")","v":"Utvikling av profylaktiske tiltak mot laksefisk parasitten Parvicapsula pseudobranchicola; med fokus på lokalisering og vaksinekandidater"},"Nordland","Mainstream Norway","Akvakultur og fiskehelse",2010.0,20.0]
[{"$f":"HYPERLINK(\"http://mabit.no/prosjekt16\",\"Monitoring and control of marine pool ecosystem: a step toward organic cod farming (Part I)\")","v":"Monitoring and control of marine pool ecosystem: a step toward organic cod farming (Part I)"},"Nordland","Bioforsk Nord Bodø","Akvakultur og fiskehelse",2009.0,16.0]
[{"$f":"HYPERLINK(\"http://mabit.no/prosjekt15\",\"Monitoring and control of marine pool ecosystem: a step toward organic cod farming (Part II)\")","v":"Monitoring and control of marine pool ecosystem: a step toward organic cod farming (Part II)"},"Nordland","Bioforsk Nord Bodø","Akvakultur og fiskehelse",2009.0,15.0]
[{"$f":"HYPERLINK(\"http://mabit.no/prosjekt14\",\"Naturlig astaxanthin fra mikroalger (Del 2)\")","v":"Naturlig astaxanthin fra mikroalger (Del 2)"},"Nordland","Promar Aqua AS, Oslo","Marin biprodukter",2009.0,14.0]
[{"$f":"HYPERLINK(\"http://mabit.no/prosjekt3\",\"Effektiv pre-prosessering og fraksjonering av n-3 LCPUFA\")","v":"Effektiv pre-prosessering og fraksjonering av n-3 LCPUFA"},"Nordland","Noromega","Marin biprodukter",2007.0,3.0]
[{"$f":"HYPERLINK(\"http://mabit.no/prosjekt75\",\"Bruk av kongekrabbemel som næringskilde og attraktant i fôr til Arktisk røye i oppdrett\")","v":"Bruk av kongekrabbemel som næringskilde og attraktant i fôr til Arktisk røye i oppdrett"},"Finnmark","Kirkenes Charr AS","Akvakultur og fiskehelse",2012.0,75.0]
[{"$f":"HYPERLINK(\"http://mabit.no/prosjekt48\",\"Levende kongekrabbe - optimal lagring og sending\")","v":"Levende kongekrabbe - optimal lagring og sending"},"Finnmark","Norway King Crab Production AS","Akvakultur og fiskehelse",2011.0,48.0]
[{"$f":"HYPERLINK(\"http://mabit.no/prosjekt18\",\"Kaldtvannstilpassede enzymer - en oppdagelsesferd innenfor et spennende forretningsområde\")","v":"Kaldtvannstilpassede enzymer - en oppdagelsesferd innenfor et spennende forretningsområde"},"Finnmark","Holmfjord AS, Børselv","Marin bioprospektering",2009.0,18.0]
[{"$f":"HYPERLINK(\"http://mabit.no/prosjekt93\",\"Bruk av olje fra umoden norsk vill silderogn som ny kilde til kosttilskudd for mennesker som alternativ til fiskeolje\")","v":"Bruk av olje fra umoden norsk vill silderogn som ny kilde til kosttilskudd for mennesker som alternativ til fiskeolje"},"Andre","CLARE AS","Marin biprodukter",2014.0,93.0]
[{"$f":"HYPERLINK(\"http://mabit.no/prosjekt50\",\"High fidelity sequencing of oil reservoir metagenomes\")","v":"High fidelity sequencing of oil reservoir metagenomes"},"Andre","Sintef","Marin bioprospektering",2011.0,50.0]
[{"$f":"HYPERLINK(\"http://mabit.no/prosjekt43\",\"Overflatemodifisering for å hindre bakterievekst på gytematter i leppefiskoppdrett\")","v":"Overflatemodifisering for å hindre bakterievekst på gytematter i leppefiskoppdrett"},"Andre","Sintef","Akvakultur og fiskehelse",2011.0,43.0]
[{"$f":"HYPERLINK(\"http://mabit.no/prosjekt32\",\"Bioprospektering i arktiske marine metatranskriptomer (BIOPAMM); kartlegging av aktivitet og søk etter bioaktive stoffer i eukaryote mikrober fra havområdene rundt Svalbard.\")","v":"Bioprospektering i arktiske marine metatranskriptomer (BIOPAMM); kartlegging av aktivitet og søk etter bioaktive stoffer i eukaryote mikrober fra havområdene rundt Svalbard."},"Andre","UNIS, avd. for Arktisk Biologi","Marin bioprospektering",2010.0,32.0]

{"sheet":"Prosjekttype","index":2,"n_rows":105,"n_cols":6,"rows_kept":105,"cut":false,"hidden":false,"merged":[]}
["Projektnavn","Fylke","Prosjektsøker","Prosjekttype","År","Prosjekt #"]
[{"$f":"HYPERLINK(\"http://mabit.no/prosjekt96\",\"Økt kvalitet i snøkrabbeindustrien gjennom hindring av misfarging - NoBlueCrab\")","v":"Økt kvalitet i snøkrabbeindustrien gjennom hindring av misfarging - NoBlueCrab"},"Troms","Nofima","Akvakultur og fiskehelse",2015.0,96.0]
[{"$f":"HYPERLINK(\"http://mabit.no/prosjekt91\",\"Development of seeding procedures for Sushi-Algae (Nori) suited for mariculture in Northern Norway\")","v":"Development of seeding procedures for Sushi-Algae (Nori) suited for mariculture in Northern Norway"},"Nordland","Bioforsk Nord Bodø","Akvakultur og fiskehelse",2014.0,91.0]
[{"$f":"HYPERLINK(\"http://mabit.no/prosjekt86\",\"The use of interferon in protection of Atlantic salmon against salmon pancreas disease virus\")","v":"The use of interferon in protection of Atlantic salmon against salmon pancreas disease virus"},"Troms","Universitetet i Tromsø, NFH","Akvakultur og fiskehelse",2014.0,86.0]
[{"$f":"HYPERLINK(\"http://mabit.no/prosjekt85\",\"Development of methods for short and long-term storage of sperm from sp. wolffish (CRYWOLF)\")","v":"Development of methods for short and long-term storage of sperm from sp. wolffish (CRYWOLF)"},"Troms","Akvaplan-niva AS","Akvakultur og fiskehelse",2013.0,85.0]
[{"$f":"HYPERLINK(\"http://mabit.no/prosjekt83\",\"Etablere smittemodeller for nord-norsk rognkjeks for fremtidig sykdomsbekjempelse og vaksineutvikling.\")","v":"Etablere smittemodeller for nord-norsk rognkjeks for fremtidig sykdomsbekjempelse og vaksineutvikling."},"Troms","Nofima AS","Akvakultur og fiskehelse",2013.0,83.0]
[{"$f":"HYPERLINK(\"http://mabit.no/prosjekt78\",\"Hjertehelse som risikofaktor for slaktedødelighet i Nord-Norge\")","v":"Hjertehelse som risikofaktor for slaktedødelighet i Nord-Norge"},"Troms","Lerøy Aurora AS","Akvakultur og fiskehelse",2013.0,78.0]
[{"$f":"HYPERLINK(\"http://mabit.no/prosjekt75\",\"Bruk av kongekrabbemel som næringskilde og attraktant i fôr til Arktisk røye i oppdrett\")","v":"Bruk av kongekrabbemel som næringskilde og attraktant i fôr til Arktisk røye i oppdrett"},"Finnmark","Kirkenes Charr AS","Akvakultur og fiskehelse",2012.0,75.0]
[{"$f":"HYPERLINK(\"http://mabit.no/prosjekt72\",\"Development of a new fish feed concept based on raw materials from aquaculture and fish industry – development of protocols for production\")","v":"Development of a new fish feed concept based on raw materials from aquaculture and fish industry – development of protocols for production"},"Nordland","Bioforsk Bodø","Akvakultur og fiskehelse",2012.0,72.0]
[{"$f":"HYPERLINK(\"http://mabit.no/prosjekt69\",\"Isolation and characterization of Norwegian red algae suitable for commercial mariculture\")","v":"Isolation and characterization of Norwegian red algae suitable for commercial mariculture"},"Nordland","Bioforsk Nord Bodø","Akvakultur og fiskehelse",2012.0,69.0]
[{"$f":"HYPERLINK(\"http://mabit.no/prosjekt68\",\"Northern Competence Group: Aquaculture Clinical Nutrition\")","v":"Northern Competence Group: Aquaculture Clinical Nutrition"},"Troms","EWOS Innovation","Akvakultur og fiskehelse",2012.0,68.0]
[{"$f":"HYPERLINK(\"http://mabit.no/prosjekt62\",\"The use of functional feed to improve the overall performance of Atlantic salmon smolt\")","v":"The use of functional feed to improve the overall performance of Atlantic salmon smolt"},"Nordland","BioMar AS","Akvakultur og fiskehelse",2012.0,62.0]
[{"$f":"HYPERLINK(\"http://mabit.no/prosjekt58\",\"Verktøy for vaksineutvikling mot hjerte- og skjelettmuskel betennelse (HSMB) i laks\")","v":"Verktøy for vaksineutvikling mot hjerte- og skjelettmuskel betennelse (HSMB) i laks"},"Troms","Nofima","Akvakultur og fiskehelse",2012.0,58.0]
[{"$f":"HYPERLINK(\"http://mabit.no/prosjekt52\",\"Functional tools to estimate egg quality in Atlantic salmon, with particular reference to postovulatory aging (POA)\")","v":"Functional tools to estimate egg quality in Atlantic salmon, with particular reference to postovulatory aging (POA)"},"Nordland","Universitetet i Nordland","Akvakultur og fiskehelse",2011.0,52.0]
[{"$f":"HYPERLINK(\"http://mabit.no/prosjekt48\",\"Levende kongekrabbe - optimal lagring og sending\")","v":"Levende kongekrabbe - optimal lagring og sending"},"Finnmark","Norway King Crab Production AS","Akvakultur og fiskehelse",2011.0,48.0]
[{"$f":"HYPERLINK(\"http://mabit.no/prosjekt43\",\"Overflatemodifisering for å hindre bakterievekst på gytematter i leppefiskoppdrett\")","v":"Overflatemodifisering for å hindre bakterievekst på gytematter i leppefiskoppdrett"},"Andre","Sintef","Akvakultur og fiskehelse",2011.0,43.0]
[{"$f":"HYPERLINK(\"http://mabit.no/prosjekt41\",\"Rognkjeks som biologisk avlusningsmetode - for oppdrettslaks og torsk i Nord-Norge (NORDLUS)\")","v":"Rognkjeks som biologisk avlusningsmetode - for oppdrettslaks og torsk i Nord-Norge (NORDLUS)"},"Troms","Akvaplan-Niva","Akvakultur og fiskehelse",2011.0,41.0]
[{"$f":"HYPERLINK(\"http://mabit.no/prosjekt40\",\"Targeted gonad ablation in zebrafish\")","v":"Targeted gonad ablation in zebrafish"},"Nordland","Universitetet i Nordland","Akvakultur og fiskehelse",2011.0,40.0]
[{"$f":"HYPERLINK(\"http://mabit.no/prosjekt38\",\"Utvikling av francisellose vaksine for torsk\")","v":"Utvikling av francisellose vaksine for torsk"},"Troms","Nofima Marin","Akvakultur og fiskehelse",2011.0,38.0]
[{"$f":"HYPERLINK(\"http://mabit.no/prosjekt36\",\"«From feed composition to reproductive performance - a liver perspective»\")","v":"«From feed composition to reproductive performance - a liver perspective»"},"Nordland","Universitetet i Nordland","Akvakultur og fiskehelse",2011.0,36.0]
[{"$f":"HYPERLINK(\"http://mabit.no/prosjekt31\",\"Development of new technologies for sustainable and environmental friendly farming of Atlantic cod in the North\")","v":"Development of new technologies for sustainable and environmental friendly farming of Atlantic cod in the North"},"Nordland","Høgskolen i Bodø","Akvakultur og fiskehelse",2010.0,31.0]
[{"$f":"HYPERLINK(\"http://mabit.no/prosjekt29\",\"Fôringrediensers virkning på lakselus\")","v":"Fôringrediensers virkning på lakselus"},"Nordland","Høgskolen i Bodø","Akvakultur og fiskehelse",2010.0,29.0]
[{"$f":"HYPERLINK(\"http://mabit.no/prosjekt21\",\"Utvikling av fôrmidler til leppefisk\")","v":"Utvikling av fôrmidler til leppefisk"},"Troms","Troms Fiskeindustri 2 AS","Akvakultur og fiskehelse",2010.0,21.0]
[{"$f":"HYPERLINK(\"http://mabit.no/prosjekt20\",\"Utvikling av profylaktiske tiltak mot laksefisk parasitten Parvicapsula pseudobranchicola; med fokus på lokalisering og vaksinekandidater\")","v":"Utvikling av profylaktiske tiltak mot laksefisk parasitten Parvicapsula pseudobranchicola; med fokus på lokalisering og vaksinekandidater"},"Nordland","Mainstream Norway","Akvakultur og fiskehelse",2010.0,20.0]
[{"$f":"HYPERLINK(\"http://mabit.no/prosjekt16\",\"Monitoring and control of marine pool ecosystem: a step toward organic cod farming (Part I)\")","v":"Monitoring and control of marine pool ecosystem: a step toward organic cod farming (Part I)"},"Nordland","Bioforsk Nord Bodø","Akvakultur og fiskehelse",2009.0,16.0]
[{"$f":"HYPERLINK(\"http://mabit.no/prosjekt15\",\"Monitoring and control of marine pool ecosystem: a step toward organic cod farming (Part II)\")","v":"Monitoring and control of marine pool ecosystem: a step toward organic cod farming (Part II)"},"Nordland","Bioforsk Nord Bodø","Akvakultur og fiskehelse",2009.0,15.0]
[{"$f":"HYPERLINK(\"http://mabit.no/prosjekt9\",\"Use of marine alginates to deliver bioactive compounds to reduce diseases in Atlantic salmon production in Northern Norway\")","v":"Use of marine alginates to deliver bioactive compounds to reduce diseases in Atlantic salmon production in Northern Norway"},"Troms","Ewos Innovation","Akvakultur og fiskehelse",2009.0,9.0]
[{"$f":"HYPERLINK(\"http://mabit.no/prosjekt7\",\"Vaccines against infectious salmon anaemia virus in Atlantic salmon – efficacy, ability to reduce the number of healthy carriers and development of in vitro tools for evaluation of vaccine candidates\")","v":"Vaccines against infectious salmon anaemia virus in Atlantic salmon – efficacy, ability to reduce the number of healthy carriers and development of in vitro tools for evaluation of vaccine candidates"},"Troms","Nofima Marin","Akvakultur og fiskehelse",2009.0,7.0]
[{"$f":"HYPERLINK(\"http://mabit.no/prosjekt103\",\"Feasibility of using enzymes for conversion of chitin hydrolysates to sialic acid with commercial potential\")","v":"Feasibility of using enzymes for conversion of chitin hydrolysates to sialic acid with commercial potential"},"Troms","UiT- Norges arktiske universitet","Marin bioprospektering",2015.0,103.0]
[{"$f":"HYPERLINK(\"http://mabit.no/prosjekt99\",\"Screening of Marine Extract Fractions by Bacillus Mode of Action specific BioSensors (BMABioS)\")","v":"Screening of Marine Extract Fractions by Bacillus Mode of Action specific BioSensors (BMABioS)"},"Troms","UiT- Norges arktiske universitet, NFH","Marin bioprospektering",2015.0,99.0]
[{"$f":"HYPERLINK(\"http://mabit.no/prosjekt98\",\"Sea urchins – a potential source for new carbohydrate active enzymes for bioengineering of seaweed polysaccharides\")","v":"Sea urchins – a potential source for new carbohydrate active enzymes for bioengineering of seaweed polysaccharides"},"Nordland","NIBIO Bodø","Marin bioprospektering",2015.0,98.0]
[{"$f":"HYPERLINK(\"http://mabit.no/prosjekt97\",\"Securing commerciability of anticancer activities identified for diketopiperazines derived from marine bioprospecting.\")","v":"Securing commerciability of anticancer activities identified for diketopiperazines derived from marine bioprospecting."},"Troms","UiT- Norges arktiske universitet","Marin bioprospektering",2015.0,97.0]
[{"$f":"HYPERLINK(\"http://mabit.no/prosjekt94\",\"Bruk av marine polypeptider for å behandle acne vulgaris\")","v":"Bruk av marine polypeptider for å behandle acne vulgaris"},"Troms","UiT Norges arktiske universitet, Norge fiskerihøgskole","Marin bioprospektering",2014.0,94.0]
[{"$f":"HYPERLINK(\"http://mabit.no/prosjekt92\",\"Development of heterobifunctional linkers for the synthesis of marine-based anticancer prodrugs\")","v":"Development of heterobifunctional linkers for the synthesis of marine-based anticancer prodrugs"},"Troms","Norut","Marin bioprospektering",2014.0,92.0]
[{"$f":"HYPERLINK(\"http://mabit.no/prosjekt90\",\"Exploring the surface of crop plants as natural source for noxious weed repellents\")","v":"Exploring the surface of crop plants as natural source for noxious weed repellents"},"Troms","Universitetet i Tromsø, Institutt for arktisk og marin biologi","Marin bioprospektering",2014.0,90.0]
[{"$f":"HYPERLINK(\"http://mabit.no/prosjekt89\",\"Halozymes -Halofile enzymer med industriellt potensiale\")","v":"Halozymes -Halofile enzymer med industriellt potensiale"},"Troms","Barentzymes AS","Marin bioprospektering",2014.0,89.0]
[{"$f":"HYPERLINK(\"http://mabit.no/prosjekt88\",\"Hit-to-lead drug evaluation of marine natural product mimics with antimicrobial and anticancer activity\")","v":"Hit-to-lead drug evaluation of marine natural product mimics with antimicrobial and anticancer activity"},"Troms","Universitetet i Tromsø, Institutt for Farmasi","Marin bioprospektering",2014.0,88.0]
[{"$f":"HYPERLINK(\"http://mabit.no/prosjekt82\",\"Etablering av cellulære assays for screening av nye kinaseinhibitorer.\")","v":"Etablering av cellulære assays for screening av nye kinaseinhibitorer."},"Troms","Universitetet i Tromsø, Institutt for Farmasi","Marin bioprospektering",2013.0,82.0]
[{"$f":"HYPERLINK(\"http://mabit.no/prosjekt76\",\"Utvinning og testing av bio-aktive substanser fra restråstoff\")","v":"Utvinning og testing av bio-aktive substanser fra restråstoff"},"Troms","ScandiDerma AS","Marin bioprospektering",2013.0,76.0]
[{"$f":"HYPERLINK(\"http://mabit.no/prosjekt74\",\"Baculovirus expression of key drug discovery targets\")","v":"Baculovirus expression of key drug discovery targets"},"Troms","Universitet i Tromsø","Marin bioprospektering",2012.0,74.0]
[{"$f":"HYPERLINK(\"http://mabit.no/prosjekt73\",\"Bioactive Interfaces\")","v":"Bioactive Interfaces"},"Troms","Universitet i Tromsø","Marin bioprospektering",2012.0,73.0]
[{"$f":"HYPERLINK(\"http://mabit.no/prosjekt67\",\"Oppsett av screening plattform for testing av dermatologiske indikasjoner\")","v":"Oppsett av screening plattform for testing av dermatologiske indikasjoner"},"Troms","Scandinavian Dermal Innovation","Marin bioprospektering",2012.0,67.0]
[{"$f":"HYPERLINK(\"http://mabit.no/prosjekt66\",\"Produksjon av nye protein kinase targets for screening og strukturstudier\")","v":"Produksjon av nye protein kinase targets for screening og strukturstudier"},"Troms","Lytix Biopharma AS","Marin bioprospektering",2012.0,66.0]
[{"$f":"HYPERLINK(\"http://mabit.no/prosjekt64\",\"Syntese og bioaktivitets-studier av lavmolekylære forbindelser fra sjøpung\")","v":"Syntese og bioaktivitets-studier av lavmolekylære forbindelser fra sjøpung"},"Troms","Norges Fiskerihøgskole, Universitetet i Tromsø","Marin bioprospektering",2012.0,64.0]
[{"$f":"HYPERLINK(\"http://mabit.no/prosjekt63\",\"The development of In Vitro Oxidative Folding Competencies in Di-sulfide Rich Peptides\")","v":"The development of In Vitro Oxidative Folding Competencies in Di-sulfide Rich Peptides"},"Troms","Norut","Marin bioprospektering",2012.0,63.0]
[{"$f":"HYPERLINK(\"http://mabit.no/prosjekt61\",\"Up-scaling of synthesis of some bioactive marine lipids\")","v":"Up-scaling of synthesis of some bioactive marine lipids"},"Troms","Norut","Marin bioprospektering",2012.0,61.0]
[{"$f":"HYPERLINK(\"http://mabit.no/prosjekt57\",\"Analyse av det virale metagenomet i marint sediment\")","v":"Analyse av det virale metagenomet i marint sediment"},"Troms","Universitet i Tromsø","Marin bioprospektering",2011.0,57.0]
[{"$f":"HYPERLINK(\"http://mabit.no/prosjekt56\",\"Antioksidant- og anti-inflamatorisk effekt i relasjon til utviklinger av lesjoner i musemodell: Sammenligning mellom komponent X, kråkeboller og Olivita\")","v":"Antioksidant- og anti-inflamatorisk effekt i relasjon til utviklinger av lesjoner i musemodell: Sammenligning mellom komponent X, kråkeboller og Olivita"},"Troms","ABC Bioscience","Marin bioprospektering",2011.0,56.0]
[{"$f":"HYPERLINK(\"http://mabit.no/prosjekt55\",\"Biosurfactants from marine microorganisms\")","v":"Biosurfactants from marine microorganisms"},"Nordland","Norut Narvik","Marin bioprospektering",2011.0,55.0]
[{"$f":"HYPERLINK(\"http://mabit.no/prosjekt54\",\"Etablering av ny dyremodell (blodtrykksregulering) ved UiT\")","v":"Etablering av ny dyremodell (blodtrykksregulering) ved UiT"},"Troms","U*niversitetet i Tromsø, BFE","Marin bioprospektering",2011.0,54.0]
[{"$f":"HYPERLINK(\"http://mabit.no/prosjekt51\",\"GENOpipe - a pipeline for analysis, visualization and management of genomic and metagenomic data\")","v":"GENOpipe - a pipeline for analysis, visualization and management of genomic and metagenomic data"},"Troms","Universitetet i Tromsø","Marin bioprospektering",2011.0,51.0]
[{"$f":"HYPERLINK(\"http://mabit.no/prosjekt50\",\"High fidelity sequencing of oil reservoir metagenomes\")","v":"High fidelity sequencing of oil reservoir metagenomes"},"Andre","Sintef","Marin bioprospektering",2011.0,50.0]
[{"$f":"HYPERLINK(\"http://mabit.no/prosjekt49\",\"Kartlegging av ACE-hemmende peptider i Marealis peptidkonsentrat\")","v":"Kartlegging av ACE-hemmende peptider i Marealis peptidkonsentrat"},"Troms","Marealis AS","Marin bioprospektering",2011.0,49.0]
[{"$f":"HYPERLINK(\"http://mabit.no/prosjekt47\",\"Lipolytiske enzymer fra arktisk metagenom\")","v":"Lipolytiske enzymer fra arktisk metagenom"},"Troms","Universitetet i Tromsø, BFE","Marin bioprospektering",2011.0,47.0]
[{"$f":"HYPERLINK(\"http://mabit.no/prosjekt46\",\"Massedyrking av marine nordige/arktiske mikroalger til industrielle formål\")","v":"Massedyrking av marine nordige/arktiske mikroalger til industrielle formål"},"Troms","Universitetet i Tromsø","Marin bioprospektering",2011.0,46.0]
[{"$f":"HYPERLINK(\"http://mabit.no/prosjekt44\",\"Multi-sensitive HTS assays for antimicrobial activity screening\")","v":"Multi-sensitive HTS assays for antimicrobial activity screening"},"Troms","Universitetet i Tromsø","Marin bioprospektering",2011.0,44.0]
[{"$f":"HYPERLINK(\"http://mabit.no/prosjekt42\",\"Protein kinase inhibitor lead design based on marine bioprospecting hits and other binding fragment data\")","v":"Protein kinase inhibitor lead design based on marine bioprospecting hits and other binding fragment data"},"Troms","Universitetet i Tromsø","Marin bioprospektering",2011.0,42.0]
[{"$f":"HYPERLINK(\"http://mabit.no/prosjekt37\",\"Utvikling av klinisk dokumentasjon av Calanus ® Oil med sikte på industrialisering og internasjonal markedslansering\")","v":"Utvikling av klinisk dokumentasjon av Calanus ® Oil med sikte på industrialisering og internasjonal markedslansering"},"Troms","Calanus AS","Marin bioprospektering",2011.0,37.0]
[{"$f":"HYPERLINK(\"http://mabit.no/prosjekt33\",\"Biomarkers of inherited lice resistance in Atlantic salmon\")","v":"Biomarkers of inherited lice resistance in Atlantic salmon"},"Troms","Nofima Marin","Marin bioprospektering",2010.0,33.0]
[{"$f":"HYPERLINK(\"http://mabit.no/prosjekt32\",\"Bioprospektering i arktiske marine metatranskriptomer (BIOPAMM); kartlegging av aktivitet og søk etter bioaktive stoffer i eukaryote mikrober fra havområdene rundt Svalbard.\")","v":"Bioprospektering i arktiske marine metatranskriptomer (BIOPAMM); kartlegging av aktivitet og søk etter bioaktive stoffer i eukaryote mikrober fra havområdene rundt Svalbard."},"Andre","UNIS, avd. for Arktisk Biologi","Marin bioprospektering",2010.0,32.0]
[{"$f":"HYPERLINK(\"http://mabit.no/prosjekt28\",\"Forprosjekt på identifisering og utvikling av Endonuclease I inhibitor for kommersiell utnyttelse\")","v":"Forprosjekt på identifisering og utvikling av Endonuclease I inhibitor for kommersiell utnyttelse"},"Troms","NorStruct, UiT","Marin bioprospektering",2010.0,28.0]
[{"$f":"HYPERLINK(\"http://mabit.no/prosjekt27\",\"Identifisering av arktiske plantearter med positive effekter på hud\")","v":"Identifisering av arktiske plantearter med positive effekter på hud"},"Troms","Scandinavian Dermal Innovation AS","Marin bioprospektering",2010.0,27.0]
[{"$f":"HYPERLINK(\"http://mabit.no/prosjekt26\",\"Industrial potential of antifreeze proteins (AF(G)Ps) from marine fishes in Arctic Norway - initial screening of species\")","v":"Industrial potential of antifreeze proteins (AF(G)Ps) from marine fishes in Arctic Norway - initial screening of species"},"Troms","Universitetet i Tromsø","Marin bioprospektering",2010.0,26.0]
[{"$f":"HYPERLINK(\"http://mabit.no/prosjekt25\",\"Kinase Inhibitor fra Marin Bioprospektering\")","v":"Kinase Inhibitor fra Marin Bioprospektering"},"Troms","Lytix Biopharma AS","Marin bioprospektering",2010.0,25.0]
[{"$f":"HYPERLINK(\"http://mabit.no/prosjekt24\",\"New lead compound for tuberculosis treatment\")","v":"New lead compound for tuberculosis treatment"},"Troms","Universitetet i Tromsø, Kjemi","Marin bioprospektering",2010.0,24.0]
[{"$f":"HYPERLINK(\"http://mabit.no/prosjekt23\",\"Novel approach for the treatment of cancer\")","v":"Novel approach for the treatment of cancer"},"Troms","Interogen AS","Marin bioprospektering",2010.0,23.0]
[{"$f":"HYPERLINK(\"http://mabit.no/prosjekt22\",\"Undersøkelse av nord norsk makroalge arter for antibakteriell aktivitet på tarm indikator bakterier hos landdyr og fisk (ALGEBAKT)\")","v":"Undersøkelse av nord norsk makroalge arter for antibakteriell aktivitet på tarm indikator bakterier hos landdyr og fisk (ALGEBAKT)"},"Nordland","Bioforsk Nord Bodø","Marin bioprospektering",2010.0,22.0]
[{"$f":"HYPERLINK(\"http://mabit.no/prosjekt19\",\"Beskyttelse av biologiske substrater, inkludert marine oljer ved bruk av lavmolekylære antioksidative forbindelser med opphav fra det marine og terrestriske miljø\")","v":"Beskyttelse av biologiske substrater, inkludert marine oljer ved bruk av lavmolekylære antioksidative forbindelser med opphav fra det marine og terrestriske miljø"},"Troms","ProBio Pharmaceuticals AS","Marin bioprospektering",2009.0,19.0]
[{"$f":"HYPERLINK(\"http://mabit.no/prosjekt18\",\"Kaldtvannstilpassede enzymer - en oppdagelsesferd innenfor et spennende forretningsområde\")","v":"Kaldtvannstilpassede enzymer - en oppdagelsesferd innenfor et spennende forretningsområde"},"Finnmark","Holmfjord AS, Børselv","Marin bioprospektering",2009.0,18.0]
[{"$f":"HYPERLINK(\"http://mabit.no/prosjekt17\",\"Kinase hemmere fra marin bioprospektering: - utvidet screening (del2)\")","v":"Kinase hemmere fra marin bioprospektering: - utvidet screening (del2)"},"Troms","Lytix Biopharma AS","Marin bioprospektering",2009.0,17.0]
[{"$f":"HYPERLINK(\"http://mabit.no/prosjekt13\",\"Produksjon og applikasjonstesting av en marin salttolerant endonuclease I\")","v":"Produksjon og applikasjonstesting av en marin salttolerant endonuclease I"},"Troms","Biotec Pharmacon ASA","Marin bioprospektering",2009.0,13.0]
[{"$f":"HYPERLINK(\"http://mabit.no/prosjekt12\",\"Produksjonsprosess for utnyttelse av rauåte til høykostprodukter (Del 1)\")","v":"Produksjonsprosess for utnyttelse av rauåte til høykostprodukter (Del 1)"},"Troms","Calanus AS","Marin bioprospektering",2009.0,12.0]
[{"$f":"HYPERLINK(\"http://mabit.no/prosjekt11\",\"Produksjonsprosess for utnyttelse av rauåte til høykostprodukter (Del 2)\")","v":"Produksjonsprosess for utnyttelse av rauåte til høykostprodukter (Del 2)"},"Troms","Calanus AS","Marin bioprospektering",2009.0,11.0]
[{"$f":"HYPERLINK(\"http://mabit.no/prosjekt10\",\"Storskala analyser av torskens transkriptom: populasjoner, miljøtilpasninger, genomikk, akvakuktur\")","v":"Storskala analyser av torskens transkriptom: populasjoner, miljøtilpasninger, genomikk, akvakuktur"},"Troms","Universtietet i Tromsø, IMB","Marin bioprospektering",2009.0,10.0]
[{"$f":"HYPERLINK(\"http://mabit.no/prosjekt6\",\"Fullengde-sekvensering av metagenomiske fosmidkloner\")","v":"Fullengde-sekvensering av metagenomiske fosmidkloner"},"Troms","Universtitetet i Tromsø, IMB og NFH","Marin bioprospektering",2008.0,6.0]
[{"$f":"HYPERLINK(\"http://mabit.no/prosjekt5\",\"Utvikling av musemodell for dokumentasjon av marine ingredienser i funksjonell mat\")","v":"Utvikling av musemodell for dokumentasjon av marine ingredienser i funksjonell mat"},"Troms","norinnova","Marin bioprospektering",2008.0,5.0]
[{"$f":"HYPERLINK(\"http://mabit.no/prosjekt2\",\"Genomsekvensering av vintersårbakteriene: Moritella viscosa (ex. Vibrio viscosus) og Vibrio wodanis.\")","v":"Genomsekvensering av vintersårbakteriene: Moritella viscosa (ex. Vibrio viscosus) og Vibrio wodanis."},"Troms","Universitetet i Tromsø, IMB","Marin bioprospektering",2007.0,2.0]
[{"$f":"HYPERLINK(\"http://mabit.no/prosjekt1\",\"Kinase hemmere fra marin bioprospektering: - utvidet screening (del1)\")","v":"Kinase hemmere fra marin bioprospektering: - utvidet screening (del1)"},"Troms","Lytix Biopharma AS","Marin bioprospektering",2007.0,1.0]
[{"$f":"HYPERLINK(\"http://mabit.no/prosjekt104\",\"Direct analysis of bioactive marine peptides in blood and tissue\")","v":"Direct analysis of bioactive marine peptides in blood and tissue"},"Troms","Norut Tromsø AS","Marin biprodukter",2015.0,104.0]
[{"$f":"HYPERLINK(\"http://mabit.no/prosjekt102\",\"Frysetørkede laksebiter\")","v":"Frysetørkede laksebiter"},"Troms","Drytech AS","Marin biprodukter",2015.0,102.0]
[{"$f":"HYPERLINK(\"http://mabit.no/prosjekt101\",\"Jernabsorbsjon fra nytt hemoglobinpulver\")","v":"Jernabsorbsjon fra nytt hemoglobinpulver"},"Troms","Nofima","Marin biprodukter",2015.0,101.0]
[{"$f":"HYPERLINK(\"http://mabit.no/prosjekt100\",\"Prøvedyrking makroalger i IMTA kontekst for utvinning av proteiner og andre råstoffer til fiskefor\")","v":"Prøvedyrking makroalger i IMTA kontekst for utvinning av proteiner og andre råstoffer til fiskefor"},"Nordland","Folla Alger AS","Marin biprodukter",2015.0,100.0]
[{"$f":"HYPERLINK(\"http://mabit.no/prosjekt95\",\"Biprodukter til menneskemat. Utvikling av prosess og produkter for ombordproduksjon.\")","v":"Biprodukter til menneskemat. Utvikling av prosess og produkter for ombordproduksjon."},"Nordland","AS Andenes Havfiskeselskap","Marin biprodukter",2014.0,95.0]
[{"$f":"HYPERLINK(\"http://mabit.no/prosjekt93\",\"Bruk av olje fra umoden norsk vill silderogn som ny kilde til kosttilskudd for mennesker som alternativ til fiskeolje\")","v":"Bruk av olje fra umoden norsk vill silderogn som ny kilde til kosttilskudd for mennesker som alternativ til fiskeolje"},"Andre","CLARE AS","Marin biprodukter",2014.0,93.0]
[{"$f":"HYPERLINK(\"http://mabit.no/prosjekt87\",\"Sammenligning av opptaks-hastigheter av EPA og DHA fra Calanus Oil og Ethylester (EE) fra fiskeolje hos menneske\")","v":"Sammenligning av opptaks-hastigheter av EPA og DHA fra Calanus Oil og Ethylester (EE) fra fiskeolje hos menneske"},"Troms","Calanus AS","Marin biprodukter",2014.0,87.0]
[{"$f":"HYPERLINK(\"http://mabit.no/prosjekt84\",\"Enzymer fra kongekrabbe til nedbryting av restråstoff fra laks og kylling\")","v":"Enzymer fra kongekrabbe til nedbryting av restråstoff fra laks og kylling"},"Troms","Nofima AS","Marin biprodukter",2013.0,84.0]
[{"$f":"HYPERLINK(\"http://mabit.no/prosjekt81\",\"Fremstille en høykvalitets olje fra torskelever der mest mulig av A-, D- og E vitaminene er bevart i produktet\")","v":"Fremstille en høykvalitets olje fra torskelever der mest mulig av A-, D- og E vitaminene er bevart i produktet"},"Nordland","Wahl Prosess Utvikling AS","Marin biprodukter",2013.0,81.0]
[{"$f":"HYPERLINK(\"http://mabit.no/prosjekt80\",\"Frigivelse av lukt- og smakstoffer fra kunstig og naturlig agn\")","v":"Frigivelse av lukt- og smakstoffer fra kunstig og naturlig agn"},"Troms","Polybait AS","Marin biprodukter",2013.0,80.0]
[{"$f":"HYPERLINK(\"http://mabit.no/prosjekt79\",\"HerrZyme - Enzymekarakterisering og teknologiutvikling for kommersialisering av enzym fra restråstoff av sild\")","v":"HerrZyme - Enzymekarakterisering og teknologiutvikling for kommersialisering av enzym fra restråstoff av sild"},"Troms","Nofima AS","Marin biprodukter",2013.0,79.0]
[{"$f":"HYPERLINK(\"http://mabit.no/prosjekt77\",\"Produktutvikling av OliVita olje vha ny teknologi for smaksmarkering og smakstilsetning\")","v":"Produktutvikling av OliVita olje vha ny teknologi for smaksmarkering og smakstilsetning"},"Troms","OliVita AS","Marin biprodukter",2013.0,77.0]
[{"$f":"HYPERLINK(\"http://mabit.no/prosjekt71\",\"Etablering av dyremodell for blodtrykksregulering ved UiT\")","v":"Etablering av dyremodell for blodtrykksregulering ved UiT"},"Troms","BFE, Universitetet i Tromsø","Marin biprodukter",2012.0,71.0]
[{"$f":"HYPERLINK(\"http://mabit.no/prosjekt70\",\"Forskning på proteinhydrolysater som attraktant kilder til Polybait agn\")","v":"Forskning på proteinhydrolysater som attraktant kilder til Polybait agn"},"Troms","Polybait AS","Marin biprodukter",2012.0,70.0]
[{"$f":"HYPERLINK(\"http://mabit.no/prosjekt65\",\"SALFRESH - Utviking av skånsom produksjonsprosess for lakseolje til humant konsum\")","v":"SALFRESH - Utviking av skånsom produksjonsprosess for lakseolje til humant konsum"},"Nordland","Nordlaks Produkter AS","Marin biprodukter",2012.0,65.0]
[{"$f":"HYPERLINK(\"http://mabit.no/prosjekt60\",\"Utvinning av bredbands UVR – filter og collagen fra fiskeskinn\")","v":"Utvinning av bredbands UVR – filter og collagen fra fiskeskinn"},"Troms","Universitetet i Tromsø, BFE","Marin biprodukter",2012.0,60.0]
[{"$f":"HYPERLINK(\"http://mabit.no/prosjekt59\",\"Verdens beste tran\")","v":"Verdens beste tran"},"Nordland","Vesteraalens AS","Marin biprodukter",2012.0,59.0]
[{"$f":"HYPERLINK(\"http://mabit.no/prosjekt53\",\"Fish Plastics\")","v":"Fish Plastics"},"Troms","Universitetet i Tromsø","Marin biprodukter",2011.0,53.0]
[{"$f":"HYPERLINK(\"http://mabit.no/prosjekt45\",\"Merveridi FPI - Molekylær membranfiltrering\")","v":"Merveridi FPI - Molekylær membranfiltrering"},"Nordland","Norcape","Marin biprodukter",2011.0,45.0]
[{"$f":"HYPERLINK(\"http://mabit.no/prosjekt39\",\"Utnyttelse av rygger og hoder i Vesteraalens AS: Markedsmuligheter basert på optimale råvarer, prosessdesign og sentrale kvalitetsegenskaper\")","v":"Utnyttelse av rygger og hoder i Vesteraalens AS: Markedsmuligheter basert på optimale råvarer, prosessdesign og sentrale kvalitetsegenskaper"},"Nordland","Vesteraalens AS,","Marin biprodukter",2011.0,39.0]
[{"$f":"HYPERLINK(\"http://mabit.no/prosjekt35\",\"«Viktigheten av strukturbrytere og lipolyse i farmakokinetikk av marine fosfolipider og fettløselige legemidler»\")","v":"«Viktigheten av strukturbrytere og lipolyse i farmakokinetikk av marine fosfolipider og fettløselige legemidler»"},"Troms","ConCordix Pharma AS","Marin biprodukter",2011.0,35.0]
[{"$f":"HYPERLINK(\"http://mabit.no/prosjekt34\",\"Antioksidant- og antiinflammatoriske effekter i relasjon til utvikling av lesjoner i musemodell: Effekter av kaldpresset hvalolje og ekstraksjonsprodukter fra hvalolje\")","v":"Antioksidant- og antiinflammatoriske effekter i relasjon til utvikling av lesjoner i musemodell: Effekter av kaldpresset hvalolje og ekstraksjonsprodukter fra hvalolje"},"Troms","Universitet i Tromsø, BFE","Marin biprodukter",2010.0,34.0]
[{"$f":"HYPERLINK(\"http://mabit.no/prosjekt30\",\"Dokumentasjon av vekst- og immune stimulerende effekter ved bruk av unike bioaktive peptider fra fisk til ny anvendelse i fôr til kylling for bedret økonomi og helse.\")","v":"Dokumentasjon av vekst- og immune stimulerende effekter ved bruk av unike bioaktive peptider fra fisk til ny anvendelse i fôr til kylling for bedret økonomi og helse."},"Nordland","Norcape Biotechnology","Marin biprodukter",2010.0,30.0]
[{"$f":"HYPERLINK(\"http://mabit.no/prosjekt14\",\"Naturlig astaxanthin fra mikroalger (Del 2)\")","v":"Naturlig astaxanthin fra mikroalger (Del 2)"},"Nordland","Promar Aqua AS, Oslo","Marin biprodukter",2009.0,14.0]
[{"$f":"HYPERLINK(\"http://mabit.no/prosjekt8\",\"Utvikling av vehikler for kontrollert levering av kosttilskudd og legemidler\")","v":"Utvikling av vehikler for kontrollert levering av kosttilskudd og legemidler"},"Troms","Ayanda","Marin biprodukter",2009.0,8.0]
[{"$f":"HYPERLINK(\"http://mabit.no/prosjekt4\",\"Antioksydanter til produksjon av frysetørket produkt fra filetavskjær – holdbarhets-undersøkelse\")","v":"Antioksydanter til produksjon av frysetørket produkt fra filetavskjær – holdbarhets-undersøkelse"},"Troms","Drytech AS","Marin biprodukter",2007.0,4.0]
[{"$f":"HYPERLINK(\"http://mabit.no/prosjekt3\",\"Effektiv pre-prosessering og fraksjonering av n-3 LCPUFA\")","v":"Effektiv pre-prosessering og fraksjonering av n-3 LCPUFA"},"Nordland","Noromega","Marin biprodukter",2007.0,3.0]